Department,Entity, Transaction Date, Expense Type, Expense Area, Supplier Name,Transaction number, Amount, Invoice Description
FCDO,CSC,06/04/2021,Engagement,Programme Costs,NatWest CC,NOM001047,59,
FCDO,CSC,06/04/2021,Engagement,Programme Costs,NatWest CC,NOM001047,90,
FCDO,CSC,06/04/2021,Engagement,Programme Costs,NatWest CC,NOM001047,38.37,
FCDO,CSC,06/04/2021,Engagement,Programme Costs,NatWest CC,NOM001047,9.99,
FCDO,CSC,06/04/2021,Engagement,Programme Costs,NatWest CC,NOM001047,9.52,
FCDO,CSC,06/04/2021,Engagement,Programme Costs,NatWest CC,NOM001047,18.68,
FCDO,CSC,06/04/2021,Engagement,Programme Costs,NatWest CC,NOM001047,1643.75,
FCDO,CSC,06/04/2021,Engagement,Programme Costs,NatWest CC,NOM001047,14.22,
FCDO,CSC,06/04/2021,Engagement,Programme Costs,NatWest CC,NOM001047,19,
FCDO,CSC,08/04/2021,Scholar Stipend,Award Costs,Scholar,NOM001050,-26064.77,
FCDO,CSC,30/04/2021,Postage & Courier,Programme Costs,DHL,NOM001055,725.1,
FCDO,CSC,01/04/2021,Scholar Stipend,Award Costs,Scholar,PIN053202,2197.62,
FCDO,CSC,01/04/2021,Scholar Allowances,Award Costs,Scholar,PIN053204,300,
FCDO,CSC,01/04/2021,Scholar Stipend,Award Costs,Scholar,PIN053204,531.64,
FCDO,CSC,01/04/2021,Scholar Allowances,Award Costs,Scholar,PIN053205,173.47,
FCDO,CSC,01/04/2021,Scholar Stipend,Award Costs,Scholar,PIN053205,2087.63,
FCDO,CSC,01/04/2021,Scholar Stipend,Award Costs,Scholar,PIN053207,1369,
FCDO,CSC,08/04/2021,Scholar Stipend,Award Costs,Scholar,PIN053208,1116,
FCDO,CSC,08/04/2021,Scholar Stipend,Award Costs,Scholar,PIN053208,1369,
FCDO,CSC,08/04/2021,Scholar Stipend,Award Costs,Scholar,PIN053208,1116,
FCDO,CSC,08/04/2021,Scholar Stipend,Award Costs,Scholar,PIN053208,1704,
FCDO,CSC,08/04/2021,Scholar Stipend,Award Costs,Scholar,PIN053208,1116,
FCDO,CSC,08/04/2021,Scholar Stipend,Award Costs,Scholar,PIN053208,1704,
FCDO,CSC,08/04/2021,Scholar Stipend,Award Costs,Scholar,PIN053208,1704,
FCDO,CSC,08/04/2021,Scholar Stipend,Award Costs,Scholar,PIN053208,1116,
FCDO,CSC,08/04/2021,Scholar Stipend,Award Costs,Scholar,PIN053208,1116,
FCDO,CSC,08/04/2021,Scholar Stipend,Award Costs,Scholar,PIN053208,1116,
FCDO,CSC,08/04/2021,Scholar Allowances,Award Costs,Scholar,PIN053208,240,
FCDO,CSC,08/04/2021,Scholar Allowances,Award Costs,Scholar,PIN053208,240,
FCDO,CSC,08/04/2021,Bank Charges,Programme Costs,MasterCard Prepaid Management Services Ltd,PIN053208,136.57,
FCDO,CSC,08/04/2021,Reimbursements,Award Costs,Scholar,PIN053209,128,
FCDO,CSC,08/04/2021,Award Support Costs,Award Costs,Scholar,PIN053209,805,
FCDO,CSC,08/04/2021,Bank Charges,Programme Costs,MasterCard Prepaid Management Services Ltd,PIN053209,9.33,
FCDO,CSC,09/04/2021,Interview Costs,Programme Costs,Way With Words Group,PIN053211,1976.74,
FCDO,CSC,09/04/2021,Tuition Fee,Award Costs,Lond Sch Hygiene & Tropical Me,PIN053212,3873.6,
FCDO,CSC,08/04/2021,Scholar Allowances,Award Costs,Scholar,PIN053213,150,
FCDO,CSC,08/04/2021,Scholar Stipend,Award Costs,Scholar,PIN053213,1712.15,
FCDO,CSC,08/04/2021,Scholar Allowances,Award Costs,Scholar,PIN053213,150,
FCDO,CSC,08/04/2021,Scholar Stipend,Award Costs,Scholar,PIN053213,1775.37,
FCDO,CSC,08/04/2021,Scholar Allowances,Award Costs,Scholar,PIN053213,150,
FCDO,CSC,08/04/2021,Scholar Stipend,Award Costs,Scholar,PIN053213,962.28,
FCDO,CSC,08/04/2021,Scholar Allowances,Award Costs,Scholar,PIN053213,150,
FCDO,CSC,08/04/2021,Scholar Allowances,Award Costs,Scholar,PIN053213,433,
FCDO,CSC,08/04/2021,Scholar Stipend,Award Costs,Scholar,PIN053213,758.76,
FCDO,CSC,08/04/2021,Scholar Stipend,Award Costs,Scholar,PIN053213,4286.91,
FCDO,CSC,08/04/2021,Scholar Allowances,Award Costs,Scholar,PIN053213,150,
FCDO,CSC,08/04/2021,Scholar Stipend,Award Costs,Scholar,PIN053213,347.76,
FCDO,CSC,08/04/2021,Bank Charges,Programme Costs,MasterCard Prepaid Management Services Ltd,PIN053213,110.26,
FCDO,CSC,12/04/2021,Scholar Allowances,Award Costs,Scholar,PIN053214,150,
FCDO,CSC,12/04/2021,Scholar Stipend,Award Costs,Scholar,PIN053214,1712.15,
FCDO,CSC,12/04/2021,Scholar Allowances,Award Costs,Scholar,PIN053214,150,
FCDO,CSC,12/04/2021,Scholar Allowances,Award Costs,Scholar,PIN053214,433,
FCDO,CSC,12/04/2021,Scholar Stipend,Award Costs,Scholar,PIN053214,584.88,
FCDO,CSC,12/04/2021,Scholar Stipend,Award Costs,Scholar,PIN053214,2488.66,
FCDO,CSC,12/04/2021,Scholar Allowances,Award Costs,Scholar,PIN053214,150,
FCDO,CSC,12/04/2021,Scholar Stipend,Award Costs,Scholar,PIN053214,2568.75,
FCDO,CSC,12/04/2021,Scholar Allowances,Award Costs,Scholar,PIN053214,150,
FCDO,CSC,12/04/2021,Scholar Stipend,Award Costs,Scholar,PIN053214,1712.15,
FCDO,CSC,12/04/2021,Scholar Allowances,Award Costs,Scholar,PIN053214,150,
FCDO,CSC,12/04/2021,Scholar Stipend,Award Costs,Scholar,PIN053214,1712.15,
FCDO,CSC,12/04/2021,Scholar Allowances,Award Costs,Scholar,PIN053214,150,
FCDO,CSC,12/04/2021,Scholar Stipend,Award Costs,Scholar,PIN053214,1712.15,
FCDO,CSC,12/04/2021,Scholar Allowances,Award Costs,Scholar,PIN053214,150,
FCDO,CSC,12/04/2021,Scholar Stipend,Award Costs,Scholar,PIN053214,2848.3,
FCDO,CSC,12/04/2021,Scholar Allowances,Award Costs,Scholar,PIN053214,150,
FCDO,CSC,12/04/2021,Scholar Stipend,Award Costs,Scholar,PIN053214,1822.79,
FCDO,CSC,12/04/2021,Scholar Allowances,Award Costs,Scholar,PIN053214,150,
FCDO,CSC,12/04/2021,Scholar Stipend,Award Costs,Scholar,PIN053214,2256.51,
FCDO,CSC,12/04/2021,Scholar Allowances,Award Costs,Scholar,PIN053214,150,
FCDO,CSC,12/04/2021,Scholar Stipend,Award Costs,Scholar,PIN053214,2737.65,
FCDO,CSC,12/04/2021,Scholar Allowances,Award Costs,Scholar,PIN053214,150,
FCDO,CSC,12/04/2021,Scholar Stipend,Award Costs,Scholar,PIN053214,2887.45,
FCDO,CSC,12/04/2021,Scholar Allowances,Award Costs,Scholar,PIN053214,433,
FCDO,CSC,12/04/2021,Scholar Allowances,Award Costs,Scholar,PIN053214,1750,
FCDO,CSC,12/04/2021,Bank Charges,Programme Costs,MasterCard Prepaid Management Services Ltd,PIN053214,293.1,
FCDO,CSC,14/04/2021,Scholar Allowances,Award Costs,Scholar,PIN053215,165.59,
FCDO,CSC,14/04/2021,Scholar Allowances,Award Costs,Scholar,PIN053215,247,
FCDO,CSC,14/04/2021,Scholar Stipend,Award Costs,Scholar,PIN053215,2645.6,
FCDO,CSC,14/04/2021,Scholar Stipend,Award Costs,Scholar,PIN053216,2738,
FCDO,CSC,14/04/2021,Scholar Allowances,Award Costs,Scholar,PIN053217,431,
FCDO,CSC,14/04/2021,Scholar Stipend,Award Costs,Scholar,PIN053217,1269.72,
FCDO,CSC,14/04/2021,Bank Charges,Programme Costs,MasterCard Prepaid Management Services Ltd,PIN053217,17.01,
FCDO,CSC,16/04/2021,Scholar Allowances,Award Costs,Scholar,PIN053218,150,
FCDO,CSC,16/04/2021,Scholar Stipend,Award Costs,Scholar,PIN053218,1712.15,
FCDO,CSC,16/04/2021,Scholar Allowances,Award Costs,Scholar,PIN053218,150,
FCDO,CSC,16/04/2021,Scholar Stipend,Award Costs,Scholar,PIN053218,1490.84,
FCDO,CSC,16/04/2021,Scholar Allowances,Award Costs,Scholar,PIN053218,150,
FCDO,CSC,16/04/2021,Scholar Stipend,Award Costs,Scholar,PIN053218,1420.77,
FCDO,CSC,16/04/2021,Scholar Allowances,Award Costs,Scholar,PIN053218,150,
FCDO,CSC,16/04/2021,Scholar Stipend,Award Costs,Scholar,PIN053218,1712.15,
FCDO,CSC,16/04/2021,Scholar Allowances,Award Costs,Scholar,PIN053218,150,
FCDO,CSC,16/04/2021,Scholar Stipend,Award Costs,Scholar,PIN053218,1886.02,
FCDO,CSC,16/04/2021,Scholar Allowances,Award Costs,Scholar,PIN053218,150,
FCDO,CSC,16/04/2021,Scholar Allowances,Award Costs,Scholar,PIN053218,433,
FCDO,CSC,16/04/2021,Scholar Stipend,Award Costs,Scholar,PIN053218,1705.22,
FCDO,CSC,16/04/2021,Scholar Stipend,Award Costs,Scholar,PIN053218,2635.32,
FCDO,CSC,16/04/2021,Scholar Allowances,Award Costs,Scholar,PIN053218,150,
FCDO,CSC,16/04/2021,Scholar Stipend,Award Costs,Scholar,PIN053218,2832.5,
FCDO,CSC,16/04/2021,Bank Charges,Programme Costs,MasterCard Prepaid Management Services Ltd,PIN053218,168.79,
FCDO,CSC,20/04/2021,Scholar Allowances,Award Costs,Scholar,PIN053219,150,
FCDO,CSC,20/04/2021,Scholar Stipend,Award Costs,Scholar,PIN053219,268.73,
FCDO,CSC,20/04/2021,Scholar Allowances,Award Costs,Scholar,PIN053219,150,
FCDO,CSC,20/04/2021,Scholar Stipend,Award Costs,Scholar,PIN053219,268.73,
FCDO,CSC,20/04/2021,Scholar Allowances,Award Costs,Scholar,PIN053219,150,
FCDO,CSC,20/04/2021,Scholar Stipend,Award Costs,Scholar,PIN053219,331.96,
FCDO,CSC,20/04/2021,Scholar Allowances,Award Costs,Scholar,PIN053219,150,
FCDO,CSC,20/04/2021,Scholar Stipend,Award Costs,Scholar,PIN053219,1648.92,
FCDO,CSC,20/04/2021,Scholar Allowances,Award Costs,Scholar,PIN053219,150,
FCDO,CSC,20/04/2021,Scholar Stipend,Award Costs,Scholar,PIN053219,1680.53,
FCDO,CSC,20/04/2021,Bank Charges,Programme Costs,MasterCard Prepaid Management Services Ltd,PIN053219,49.5,
FCDO,CSC,19/04/2021,Scholar Stipend,Award Costs,Scholar,PIN053221,1629.24,
FCDO,CSC,19/04/2021,Scholar Stipend,Award Costs,Scholar,PIN053222,1864.58,
FCDO,CSC,23/04/2021,Award Support Costs,Award Costs,Kings College London,PIN053223,6440,
DFE,CSC,23/04/2021,Scholar Allowances,Award Costs,The University of Leeds,PIN053224,5712,
FCDO,CSC,23/04/2021,Tuition Fee,Award Costs,University of Manchester,PIN053225,4831.8,
FCDO,CSC,23/04/2021,Scholar Travel,Award Costs,Scholar,PIN053226,507,
FCDO,CSC,23/04/2021,Tuition Fee,Award Costs,University of Manchester,PIN053227,3623.85,
FCDO,CSC,23/04/2021,Scholar Allowances,Award Costs,Royal Veterinary College,PIN053228,1000,
FCDO,CSC,23/04/2021,Award Support Costs,Award Costs,University of Glasgow,PIN053229,1000,
FCDO,CSC,23/04/2021,Award Support Costs,Award Costs,University of Glasgow,PIN053230,11733,
FCDO,CSC,23/04/2021,Tuition Fee,Award Costs,Manchester Metropolitan University,PIN053232,12800,
FCDO,CSC,23/04/2021,Tuition Fee,Award Costs,The University of Warwick,PIN053233,4802,
FCDO,CSC,23/04/2021,Tuition Fee,Award Costs,University of Leicester,PIN053234,5000,
FCDO,CSC,23/04/2021,Tuition Fee,Award Costs,University of Bristol,PIN053235,8333.33,
FCDO,CSC,23/04/2021,Tuition Fee,Award Costs,University of Bristol,PIN053236,18000,
FCDO,CSC,23/04/2021,Award Support Costs,Award Costs,University of Bristol,PIN053237,7000,
FCDO,CSC,23/04/2021,Alumni Engagement,Programme Costs,Jon Spaull,PIN053238,840,
FCDO,CSC,23/04/2021,Alumni Engagement,Programme Costs,Jon Spaull,PIN053239,5040,
FCDO,CSC,23/04/2021,Alumni Engagement,Admin Costs,TFW Printers,PIN053240,2352,
FCDO,CSC,22/04/2021,Scholar Stipend,Award Costs,Scholar,PIN053241,501.99,
FCDO,CSC,22/04/2021,Scholar Allowances,Award Costs,Scholar,PIN053243,1750,
FCDO,CSC,22/04/2021,Scholar Allowances,Award Costs,Scholar,PIN053243,433,
FCDO,CSC,22/04/2021,Scholar Stipend,Award Costs,Scholar,PIN053243,1931.65,
FCDO,CSC,22/04/2021,Scholar Allowances,Award Costs,Scholar,PIN053243,433,
FCDO,CSC,22/04/2021,Scholar Stipend,Award Costs,Scholar,PIN053243,1822.87,
FCDO,CSC,22/04/2021,Bank Charges,Programme Costs,MasterCard Prepaid Management Services Ltd,PIN053243,63.71,
FCDO,CSC,26/04/2021,Scholar Allowances,Award Costs,Scholar,PIN053244,150,
FCDO,CSC,26/04/2021,Scholar Stipend,Award Costs,Scholar,PIN053244,1712.15,
FCDO,CSC,26/04/2021,Bank Charges,Programme Costs,MasterCard Prepaid Management Services Ltd,PIN053244,18.62,
FCDO,CSC,27/04/2021,Scholar Stipend,Award Costs,Scholar,PIN053245,2917.9,
FCDO,CSC,27/04/2021,Scholar Allowances,Award Costs,Scholar,PIN053246,3348,
FCDO,CSC,27/04/2021,Scholar Stipend,Award Costs,Scholar,PIN053249,2197.62,
FCDO,CSC,27/04/2021,Scholar Stipend,Award Costs,Scholar,PIN053251,1647.64,
FCDO,CSC,27/04/2021,Scholar Allowances,Award Costs,Scholar,PIN053251,36.67,
FCDO,CSC,30/04/2021,Tuition Fee,Award Costs,Loughborough University,PIN053252,18000,
FCDO,CSC,30/04/2021,Award Support Costs,Award Costs,Swansea University,PIN053253,8060,
FCDO,CSC,30/04/2021,Scholar Travel,Award Costs,Scholar,PIN053255,576.61,
FCDO,CSC,30/04/2021,Award Support Costs,Award Costs,Queens University Belfast,PIN053257,1200,
FCDO,CSC,30/04/2021,Tuition Fee,Award Costs,University of Greenwich,PIN053258,11200,
FCDO,CSC,30/04/2021,Visa Costs,Award Costs,University of Wolverhampton,PIN053263,132.81,
FCDO,CSC,30/04/2021,Scholar Allowances,Award Costs,University of Wolverhampton,PIN053263,400,
FCDO,CSC,30/04/2021,Scholar Allowances,Award Costs,University of Wolverhampton,PIN053263,450,
FCDO,CSC,30/04/2021,Tuition Fee,Award Costs,University of Wolverhampton,PIN053263,26700,
FCDO,CSC,30/04/2021,Scholar Travel,Award Costs,University of Wolverhampton,PIN053263,1059.2,
FCDO,CSC,30/04/2021,Tuition Fee,Award Costs,University of Sheffield,PIN053264,16640,
FCDO,CSC,30/04/2021,Award Support Costs,Award Costs,University of Leicester,PIN053265,5000,
FCDO,CSC,30/04/2021,Award Support Costs,Award Costs,University of Strathclyde,PIN053266,7890,
FCDO,CSC,30/04/2021,Tuition Fee,Award Costs,University of Huddersfield,PIN053267,11200,
FCDO,CSC,30/04/2021,Scholar Travel,Award Costs,Queen Mary University of London,PIN053268,922.32,
FCDO,CSC,30/04/2021,Visa Costs,Award Costs,Glasgow Caledonian University,PIN053269,121,
FCDO,CSC,30/04/2021,Scholar Travel,Award Costs,Glasgow Caledonian University,PIN053269,1408.22,
FCDO,CSC,30/04/2021,Tuition Fee,Award Costs,The University of Edinburgh,PIN053270,1825,
FCDO,CSC,30/04/2021,Scholar Allowances,Award Costs,Scholar,PIN053271,600,
FCDO,CSC,30/04/2021,Scholar Allowances,Award Costs,Scholar,PIN053272,600,
FCDO,CSC,30/04/2021,Miscellaneous,Admin Costs,Public Chairs Forum,PIN053273,1000,
FCDO,CSC,30/04/2021,Tuition Fee,Award Costs,The University of Edinburgh,PIN053274,-584,
FCDO,CSC,30/04/2021,Scholar Stipend,Award Costs,Scholar,PIN053275,1857.32,
FCDO,CSC,30/04/2021,Scholar Stipend,Award Costs,Scholar,PIN053276,1116,
FCDO,CSC,30/04/2021,Scholar Allowances,Award Costs,Scholar,PIN053277,7.89,
FCDO,CSC,30/04/2021,Scholar Stipend,Award Costs,Scholar,PIN053277,1665.98,
FCDO,CSC,29/04/2021,Scholar Stipend,Award Costs,Scholar,PIN053278,1712.15,
FCDO,CSC,29/04/2021,Scholar Allowances,Award Costs,Scholar,PIN053278,150,
FCDO,CSC,29/04/2021,Scholar Allowances,Award Costs,Scholar,PIN053278,150,
FCDO,CSC,29/04/2021,Scholar Stipend,Award Costs,Scholar,PIN053278,481.14,
FCDO,CSC,29/04/2021,Scholar Allowances,Award Costs,Scholar,PIN053278,1750,
FCDO,CSC,29/04/2021,Scholar Stipend,Award Costs,Scholar,PIN053278,1387.94,
FCDO,CSC,29/04/2021,Scholar Allowances,Award Costs,Scholar,PIN053278,433,
FCDO,CSC,29/04/2021,Bank Charges,Programme Costs,MasterCard Prepaid Management Services Ltd,PIN053278,60.64,
FCDO,CSC,30/04/2021,Scholar Allowances,Award Costs,Scholar,PIN053279,150,
FCDO,CSC,30/04/2021,Scholar Stipend,Award Costs,Scholar,PIN053279,1569.88,
FCDO,CSC,30/04/2021,Scholar Allowances,Award Costs,Scholar,PIN053279,150,
FCDO,CSC,30/04/2021,Scholar Stipend,Award Costs,Scholar,PIN053279,1712.15,
FCDO,CSC,30/04/2021,Scholar Allowances,Award Costs,Scholar,PIN053279,150,
FCDO,CSC,30/04/2021,Scholar Stipend,Award Costs,Scholar,PIN053279,1712.15,
FCDO,CSC,30/04/2021,Scholar Allowances,Award Costs,Scholar,PIN053279,150,
FCDO,CSC,30/04/2021,Scholar Stipend,Award Costs,Scholar,PIN053279,2848.3,
FCDO,CSC,30/04/2021,Scholar Allowances,Award Costs,Scholar,PIN053279,150,
FCDO,CSC,30/04/2021,Scholar Stipend,Award Costs,Scholar,PIN053279,2098.43,
FCDO,CSC,30/04/2021,Scholar Stipend,Award Costs,Scholar,PIN053279,1889.94,
FCDO,CSC,30/04/2021,Scholar Allowances,Award Costs,Scholar,PIN053279,433,
FCDO,CSC,30/04/2021,Scholar Stipend,Award Costs,Scholar,PIN053279,1889.94,
FCDO,CSC,30/04/2021,Scholar Allowances,Award Costs,Scholar,PIN053279,433,
FCDO,CSC,30/04/2021,Scholar Stipend,Award Costs,Scholar,PIN053279,3423.29,
FCDO,CSC,30/04/2021,Scholar Stipend,Award Costs,Scholar,PIN053279,2561.98,
FCDO,CSC,30/04/2021,Bank Charges,Programme Costs,MasterCard Prepaid Management Services Ltd,PIN053279,213.21,
FCDO,CSC,01/04/2021,Commission Meetings,Admin Costs,Commission Chair,PPI053282,3000,
BEIS,CSC,09/04/2021,Award Support Costs,Award Costs,Kings College London,PRF000212,-1153.02,
FCDO,CSC,12/04/2021,Immigration Health Surcharge,Award Costs,Scholar,PRF000213,-964.2,
FCDO,CSC,13/05/2021,Scholar Stipend,Award Costs,Scholar,PIN053260,476,
FCDO,CSC,13/05/2021,Scholar Allowances,Award Costs,Scholar,PIN053260,511.54,
FCDO,CSC,13/05/2021,Scholar Allowances,Award Costs,Scholar,PIN053260,763.04,
FCDO,CSC,13/05/2021,Scholar Allowances,Award Costs,Scholar,PIN053260,2232,
FCDO,CSC,05/05/2021,Scholar Allowances,Award Costs,Goldsmiths College,PIN053261,225,
FCDO,CSC,05/05/2021,Scholar Travel,Award Costs,Goldsmiths College,PIN053261,866.69,
FCDO,CSC,05/05/2021,Scholar Travel,Award Costs,Goldsmiths College,PIN053261,335.7,
FCDO,CSC,05/05/2021,Scholar Stipend,Award Costs,Scholar,PIN053280,1674,
FCDO,CSC,11/05/2021,Administration Fee,Admin Costs,Association of Commonwealth Univs,PIN053283,7500,
FCDO,CSC,11/05/2021,Administration Fee,Programme Costs,Association of Commonwealth Univs,PIN053283,43200,
FCDO,CSC,11/05/2021,Administration Fee,Programme Costs,Association of Commonwealth Univs,PIN053283,20400,
FCDO,CSC,11/05/2021,Administration Fee,Admin Costs,Association of Commonwealth Univs,PIN053283,12000,
FCDO,CSC,11/05/2021,Administration Fee,Programme Costs,Association of Commonwealth Univs,PIN053283,84000,
FCDO,CSC,11/05/2021,Administration Fee,Programme Costs,Association of Commonwealth Univs,PIN053283,83700,
FCDO,CSC,11/05/2021,Administration Fee,Programme Costs,Association of Commonwealth Univs,PIN053283,52800,
FCDO,CSC,11/05/2021,Administration Fee,Admin Costs,Association of Commonwealth Univs,PIN053284,3000,
FCDO,CSC,11/05/2021,Admin VAT,Admin Costs,Association of Commonwealth Univs,PIN053284,8850,
FCDO,CSC,11/05/2021,Administration Fee,Admin Costs,Association of Commonwealth Univs,PIN053284,44250,
FCDO,CSC,11/05/2021,Programme VAT,Programme Costs,Association of Commonwealth Univs,PIN053284,50000,
FCDO,CSC,11/05/2021,Administration Fee,Programme Costs,Association of Commonwealth Univs,PIN053284,250000,
FCDO,CSC,07/05/2021,Scholar Stipend,Award Costs,Scholar,PIN053285,1750.86,
FCDO,CSC,07/05/2021,Scholar Allowances,Award Costs,Scholar,PIN053285,433,
FCDO,CSC,07/05/2021,Scholar Stipend,Award Costs,Scholar,PIN053285,288.83,
FCDO,CSC,07/05/2021,Scholar Allowances,Award Costs,Scholar,PIN053285,433,
FCDO,CSC,07/05/2021,Bank Charges,Programme Costs,MasterCard Prepaid Management Services Ltd,PIN053285,29.06,
FCDO,CSC,07/05/2021,Scholar Allowances,Award Costs,Scholar,PIN053286,150,
FCDO,CSC,07/05/2021,Scholar Stipend,Award Costs,Scholar,PIN053286,1357.47,
FCDO,CSC,07/05/2021,Scholar Allowances,Award Costs,Scholar,PIN053286,150,
FCDO,CSC,07/05/2021,Scholar Stipend,Award Costs,Scholar,PIN053286,1791.18,
FCDO,CSC,07/05/2021,Scholar Allowances,Award Costs,Scholar,PIN053286,150,
FCDO,CSC,07/05/2021,Scholar Stipend,Award Costs,Scholar,PIN053286,1443.42,
FCDO,CSC,07/05/2021,Scholar Allowances,Award Costs,Scholar,PIN053286,150,
FCDO,CSC,07/05/2021,Scholar Stipend,Award Costs,Scholar,PIN053286,1712.15,
FCDO,CSC,07/05/2021,Scholar Allowances,Award Costs,Scholar,PIN053286,150,
FCDO,CSC,07/05/2021,Scholar Stipend,Award Costs,Scholar,PIN053286,1712.15,
FCDO,CSC,07/05/2021,Scholar Allowances,Award Costs,Scholar,PIN053286,150,
FCDO,CSC,07/05/2021,Scholar Stipend,Award Costs,Scholar,PIN053286,1680.52,
FCDO,CSC,07/05/2021,Scholar Allowances,Award Costs,Scholar,PIN053286,150,
FCDO,CSC,07/05/2021,Scholar Stipend,Award Costs,Scholar,PIN053286,1759.56,
FCDO,CSC,07/05/2021,Scholar Allowances,Award Costs,Scholar,PIN053286,150,
FCDO,CSC,07/05/2021,Scholar Stipend,Award Costs,Scholar,PIN053286,1712.14,
FCDO,CSC,07/05/2021,Scholar Allowances,Award Costs,Scholar,PIN053286,150,
FCDO,CSC,07/05/2021,Scholar Stipend,Award Costs,Scholar,PIN053286,2737.66,
FCDO,CSC,07/05/2021,Bank Charges,Programme Costs,MasterCard Prepaid Management Services Ltd,PIN053286,172.56,
FCDO,CSC,14/05/2021,Scholar Allowances,Award Costs,University of Aberdeen,PIN053287,200,
FCDO,CSC,14/05/2021,Visa Costs,Award Costs,University of Aberdeen,PIN053287,68,
FCDO,CSC,14/05/2021,Scholar Allowances,Award Costs,University of Aberdeen,PIN053287,225,
FCDO,CSC,14/05/2021,Scholar Travel,Award Costs,University of Aberdeen,PIN053287,827.14,
FCDO,CSC,14/05/2021,Tuition Fee,Award Costs,The University of Edinburgh,PIN053288,2745,
FCDO,CSC,14/05/2021,Tuition Fee,Award Costs,Aston University,PIN053289,11600,
FCDO,CSC,14/05/2021,Visa Costs,Award Costs,The University of Warwick,PIN053290,530,
FCDO,CSC,14/05/2021,Scholar Allowances,Award Costs,The University of Warwick,PIN053290,1350,
FCDO,CSC,14/05/2021,Scholar Allowances,Award Costs,The University of Warwick,PIN053290,1200,
FCDO,CSC,14/05/2021,Scholar Allowances,Award Costs,The University of Warwick,PIN053291,270,
FCDO,CSC,14/05/2021,Scholar Travel,Award Costs,The University of Warwick,PIN053291,112.1,
FCDO,CSC,14/05/2021,Scholar Travel,Award Costs,The University of Warwick,PIN053291,2645.34,
FCDO,CSC,14/05/2021,Scholar Travel,Award Costs,The University of Warwick,PIN053293,3524.89,
FCDO,CSC,14/05/2021,Scholar Travel,Award Costs,The University of Warwick,PIN053293,133.4,
FCDO,CSC,14/05/2021,Tuition Fee,Award Costs,Lancaster University,PIN053296,11801,
FCDO,CSC,14/05/2021,Tuition Fee,Award Costs,University of Sussex,PIN053297,4400,
FCDO,CSC,14/05/2021,Scholar Allowances,Award Costs,Royal Veterinary College,PIN053298,91.92,
FCDO,CSC,14/05/2021,Scholar Travel,Award Costs,Royal Veterinary College,PIN053298,1367.25,
FCDO,CSC,14/05/2021,Award Support Costs,Award Costs,University of Oxford,PIN053299,5000,
FCDO,CSC,14/05/2021,Tuition Fee,Award Costs,University of Liverpool,PIN053301,10000,
FCDO,CSC,14/05/2021,Tuition Fee,Award Costs,University of Manchester,PIN053303,4831.8,
FCDO,CSC,14/05/2021,Tuition Fee,Award Costs,University of Manchester,PIN053304,4831.8,
FCDO,CSC,14/05/2021,Tuition Fee,Award Costs,University of Manchester,PIN053305,4831.8,
FCDO,CSC,14/05/2021,Tuition Fee,Award Costs,University of Manchester,PIN053306,4831.8,
FCDO,CSC,14/05/2021,Tuition Fee,Award Costs,University of Manchester,PIN053307,6039.75,
FCDO,CSC,14/05/2021,Tuition Fee,Award Costs,University of Manchester,PIN053308,4831.8,
FCDO,CSC,14/05/2021,Tuition Fee,Award Costs,University of Manchester,PIN053309,4831.8,
FCDO,CSC,14/05/2021,Tuition Fee,Award Costs,University of Manchester,PIN053310,4831.8,
FCDO,CSC,14/05/2021,Tuition Fee,Award Costs,University of Manchester,PIN053311,4831.8,
FCDO,CSC,14/05/2021,Tuition Fee,Award Costs,University of Manchester,PIN053312,4831.8,
FCDO,CSC,14/05/2021,Tuition Fee,Award Costs,University of Manchester,PIN053313,4831.8,
FCDO,CSC,14/05/2021,Tuition Fee,Award Costs,University College London Fees,PIN053314,2864,
FCDO,CSC,14/05/2021,Tuition Fee,Award Costs,Coventry University,PIN053315,944.73,
FCDO,CSC,14/05/2021,Tuition Fee,Award Costs,Coventry University,PIN053315,2450,
FCDO,CSC,14/05/2021,Tuition Fee,Award Costs,Coventry University,PIN053316,2530.75,
FCDO,CSC,14/05/2021,Tuition Fee,Award Costs,Coventry University,PIN053316,2450,
FCDO,CSC,14/05/2021,Tuition Fee,Award Costs,Coventry University,PIN053317,4732.23,
FCDO,CSC,14/05/2021,Tuition Fee,Award Costs,Coventry University,PIN053317,2450,
FCDO,CSC,14/05/2021,Tuition Fee,Award Costs,Coventry University,PIN053318,246.69,
FCDO,CSC,14/05/2021,Tuition Fee,Award Costs,Coventry University,PIN053318,2450,
FCDO,CSC,14/05/2021,Award Support Costs,Award Costs,Royal Veterinary College,PIN053320,5000,
FCDO,CSC,14/05/2021,Tuition Fee,Award Costs,Royal Veterinary College,PIN053320,18000,
FCDO,CSC,14/05/2021,Scholar Travel,Award Costs,Royal Veterinary College,PIN053321,2531.7,
FCDO,CSC,14/05/2021,Scholar Allowances,Award Costs,Royal Veterinary College,PIN053321,400,
FCDO,CSC,14/05/2021,Scholar Allowances,Award Costs,Royal Veterinary College,PIN053321,900,
FCDO,CSC,14/05/2021,Visa Costs,Award Costs,Royal Veterinary College,PIN053321,458,
FCDO,CSC,14/05/2021,Tuition Fee,Award Costs,Royal Veterinary College,PIN053321,85650,
FCDO,CSC,14/05/2021,Scholar Travel,Award Costs,Diversity Travel,PIN053322,1494.36,
FCDO,CSC,14/05/2021,Scholar Travel,Award Costs,Diversity Travel,PIN053322,714.18,
FCDO,CSC,14/05/2021,Scholar Travel,Award Costs,Diversity Travel,PIN053322,714.18,
FCDO,CSC,14/05/2021,Scholar Travel,Award Costs,Diversity Travel,PIN053322,697.8,
FCDO,CSC,14/05/2021,Scholar Travel,Award Costs,Diversity Travel,PIN053322,658.76,
FCDO,CSC,14/05/2021,Scholar Travel,Award Costs,Diversity Travel,PIN053322,583.6,
FCDO,CSC,14/05/2021,Scholar Travel,Award Costs,Diversity Travel,PIN053322,546.4,
FCDO,CSC,14/05/2021,Scholar Travel,Award Costs,Diversity Travel,PIN053322,366.54,
FCDO,CSC,14/05/2021,Scholar Travel,Award Costs,Diversity Travel,PIN053322,86.8,
FCDO,CSC,14/05/2021,Scholar Travel,Award Costs,Diversity Travel,PIN053322,76.1,
FCDO,CSC,14/05/2021,Scholar Travel,Award Costs,Diversity Travel,PIN053322,38.6,
FCDO,CSC,14/05/2021,Fieldwork Airfare,Award Costs,Diversity Travel,PIN053322,16.1,
FCDO,CSC,14/05/2021,Scholar Travel,Award Costs,Diversity Travel,PIN053322,-551.18,
FCDO,CSC,14/05/2021,Scholar Travel,Award Costs,Diversity Travel,PIN053323,1279.96,
FCDO,CSC,14/05/2021,Scholar Travel,Award Costs,Diversity Travel,PIN053323,795.92,
FCDO,CSC,14/05/2021,Scholar Travel,Award Costs,Diversity Travel,PIN053323,782.75,
FCDO,CSC,14/05/2021,Scholar Travel,Award Costs,Diversity Travel,PIN053323,748.99,
FCDO,CSC,14/05/2021,Scholar Travel,Award Costs,Diversity Travel,PIN053323,635.86,
FCDO,CSC,14/05/2021,Fieldwork Airfare,Award Costs,Diversity Travel,PIN053323,607,
FCDO,CSC,14/05/2021,Scholar Travel,Award Costs,Diversity Travel,PIN053323,544.95,
FCDO,CSC,14/05/2021,Scholar Travel,Award Costs,Diversity Travel,PIN053323,511.1,
FCDO,CSC,14/05/2021,Fieldwork Airfare,Award Costs,Diversity Travel,PIN053323,489.82,
FCDO,CSC,14/05/2021,Scholar Travel,Award Costs,Diversity Travel,PIN053323,430.16,
FCDO,CSC,14/05/2021,Scholar Travel,Award Costs,Diversity Travel,PIN053323,405.52,
FCDO,CSC,14/05/2021,Scholar Travel,Award Costs,Diversity Travel,PIN053323,125.9,
FCDO,CSC,14/05/2021,Scholar Travel,Award Costs,Diversity Travel,PIN053323,49,
FCDO,CSC,14/05/2021,Scholar Travel,Award Costs,Diversity Travel,PIN053323,10.5,
FCDO,CSC,14/05/2021,Scholar Travel,Award Costs,Diversity Travel,PIN053323,8.8,
FCDO,CSC,28/05/2021,Scholar Stipend,Award Costs,Scholar,PIN053328,956.6,
FCDO,CSC,28/05/2021,Scholar Allowances,Award Costs,Scholar,PIN053328,433,
FCDO,CSC,28/05/2021,Scholar Stipend,Award Costs,Scholar,PIN053328,1630.66,
FCDO,CSC,28/05/2021,Scholar Allowances,Award Costs,Scholar,PIN053328,433,
FCDO,CSC,28/05/2021,Scholar Stipend,Award Costs,Scholar,PIN053328,1437.82,
FCDO,CSC,28/05/2021,Scholar Allowances,Award Costs,Scholar,PIN053328,433,
FCDO,CSC,28/05/2021,Bank Charges,Programme Costs,MasterCard Prepaid Management Services Ltd,PIN053328,53.25,
FCDO,CSC,14/05/2021,Scholar Stipend,Award Costs,Scholar,PIN053329,1521.31,
FCDO,CSC,14/05/2021,Scholar Allowances,Award Costs,Scholar,PIN053329,433,
FCDO,CSC,14/05/2021,Scholar Stipend,Award Costs,Scholar,PIN053329,1562.9,
FCDO,CSC,14/05/2021,Scholar Allowances,Award Costs,Scholar,PIN053329,433,
FCDO,CSC,14/05/2021,Scholar Stipend,Award Costs,Scholar,PIN053329,1684.4,
FCDO,CSC,14/05/2021,Scholar Allowances,Award Costs,Scholar,PIN053329,433,
FCDO,CSC,14/05/2021,Scholar Stipend,Award Costs,Scholar,PIN053329,1583.78,
FCDO,CSC,14/05/2021,Scholar Allowances,Award Costs,Scholar,PIN053329,433,
FCDO,CSC,14/05/2021,Scholar Stipend,Award Costs,Scholar,PIN053329,481.14,
FCDO,CSC,14/05/2021,Bank Charges,Programme Costs,MasterCard Prepaid Management Services Ltd,PIN053329,85.65,
FCDO,CSC,18/05/2021,Scholar Allowances,Award Costs,Scholar,PIN053330,150,
FCDO,CSC,18/05/2021,Scholar Stipend,Award Costs,Scholar,PIN053330,1490.84,
FCDO,CSC,18/05/2021,Scholar Allowances,Award Costs,Scholar,PIN053330,150,
FCDO,CSC,18/05/2021,Scholar Stipend,Award Costs,Scholar,PIN053330,1822.79,
FCDO,CSC,18/05/2021,Scholar Allowances,Award Costs,Scholar,PIN053330,150,
FCDO,CSC,18/05/2021,Scholar Stipend,Award Costs,Scholar,PIN053330,2405.69,
FCDO,CSC,18/05/2021,Scholar Allowances,Award Costs,Scholar,PIN053330,150,
FCDO,CSC,18/05/2021,Scholar Stipend,Award Costs,Scholar,PIN053330,2516.34,
FCDO,CSC,18/05/2021,Bank Charges,Programme Costs,MasterCard Prepaid Management Services Ltd,PIN053330,88.36,
FCDO,CSC,10/05/2021,Scholar Stipend,Award Costs,Scholar,PIN053331,1060.9,
FCDO,CSC,10/05/2021,Scholar Allowances,Award Costs,Scholar,PIN053331,433,
FCDO,CSC,10/05/2021,Scholar Stipend,Award Costs,Scholar,PIN053331,1683,
FCDO,CSC,10/05/2021,Scholar Allowances,Award Costs,Scholar,PIN053331,433,
FCDO,CSC,10/05/2021,Bank Charges,Programme Costs,MasterCard Prepaid Management Services Ltd,PIN053331,36.1,
FCDO,CSC,21/05/2021,Tuition Fee,Award Costs,The University of Leeds,PIN053332,9000,
FCDO,CSC,21/05/2021,Tuition Fee,Award Costs,The University of Leeds,PIN053333,18000,
FCDO,CSC,21/05/2021,Tuition Fee,Award Costs,University of Southampton,PIN053334,4500,
FCDO,CSC,21/05/2021,Scholar Allowances,Award Costs,Lond Sch Hygiene & Tropical Me,PIN053336,535.91,
FCDO,CSC,21/05/2021,Visa Costs,Award Costs,Lond Sch Hygiene & Tropical Me,PIN053336,187.46,
FCDO,CSC,21/05/2021,Scholar Travel,Award Costs,Lond Sch Hygiene & Tropical Me,PIN053336,2341.08,
FCDO,CSC,21/05/2021,Tuition Fee,Award Costs,Coventry University,PIN053337,2785.62,
FCDO,CSC,21/05/2021,Tuition Fee,Award Costs,Coventry University,PIN053337,2450,
FCDO,CSC,21/05/2021,Tuition Fee,Award Costs,Bangor University,PIN053338,8388,
FCDO,CSC,21/05/2021,Tuition Fee,Award Costs,University of London,PIN053339,5850,
FCDO,CSC,21/05/2021,Tuition Fee,Award Costs,University of London,PIN053340,6020,
FCDO,CSC,21/05/2021,Tuition Fee,Award Costs,University of London,PIN053341,48750,
FCDO,CSC,21/05/2021,Tuition Fee,Award Costs,University of Leicester,PIN053342,6288.96,
FCDO,CSC,21/05/2021,Tuition Fee,Award Costs,University of Essex,PIN053344,6184,
FCDO,CSC,21/05/2021,Tuition Fee,Award Costs,University of Leicester,PIN053346,11495,
FCDO,CSC,21/05/2021,Tuition Fee,Award Costs,University of Sussex,PIN053347,3700,
FCDO,CSC,21/05/2021,Tuition Fee,Award Costs,University of Sussex,PIN053348,12000,
FCDO,CSC,21/05/2021,Tuition Fee,Award Costs,The University of Birmingham,PIN053355,18000,
FCDO,CSC,21/05/2021,Scholar Travel,Award Costs,University of Bristol,PIN053356,659.9,
FCDO,CSC,21/05/2021,Scholar Travel,Award Costs,University of Bristol,PIN053357,729.5,
FCDO,CSC,21/05/2021,Scholar Travel,Award Costs,University of Bristol,PIN053358,577.5,
FCDO,CSC,21/05/2021,Scholar Travel,Award Costs,University of Bristol,PIN053359,647.7,
FCDO,CSC,21/05/2021,Scholar Travel,Award Costs,University of Bristol,PIN053360,645.5,
FCDO,CSC,21/05/2021,Tuition Fee,Award Costs,University of Bath,PIN053361,1333,
FCDO,CSC,21/05/2021,Tuition Fee,Award Costs,University of Exeter,PIN053362,12180,
FCDO,CSC,21/05/2021,Tuition Fee,Award Costs,University of Exeter,PIN053363,10500,
FCDO,CSC,21/05/2021,Visa Costs,Award Costs,Queens University Belfast,PIN053364,268,
FCDO,CSC,21/05/2021,Scholar Travel,Award Costs,Queens University Belfast,PIN053364,2183.87,
FCDO,CSC,21/05/2021,Scholar Travel,Award Costs,Diversity Travel,PIN053365,501.17,
FCDO,CSC,21/05/2021,Scholar Travel,Award Costs,Diversity Travel,PIN053365,928.02,
FCDO,CSC,21/05/2021,Scholar Travel,Award Costs,Diversity Travel,PIN053365,682.16,
FCDO,CSC,21/05/2021,Scholar Travel,Award Costs,Diversity Travel,PIN053365,754.74,
FCDO,CSC,21/05/2021,Scholar Travel,Award Costs,Diversity Travel,PIN053365,994.44,
FCDO,CSC,21/05/2021,Scholar Travel,Award Costs,Diversity Travel,PIN053365,942.68,
FCDO,CSC,21/05/2021,Scholar Travel,Award Costs,Diversity Travel,PIN053365,390.52,
FCDO,CSC,21/05/2021,Scholar Travel,Award Costs,Diversity Travel,PIN053365,1026.1,
FCDO,CSC,21/05/2021,Scholar Travel,Award Costs,Diversity Travel,PIN053365,24,
FCDO,CSC,21/05/2021,Fieldwork Airfare,Award Costs,Diversity Travel,PIN053365,1017.71,
FCDO,CSC,21/05/2021,Scholar Travel,Award Costs,Diversity Travel,PIN053365,683.5,
FCDO,CSC,21/05/2021,Scholar Travel,Award Costs,Diversity Travel,PIN053365,445.22,
FCDO,CSC,21/05/2021,Scholar Travel,Award Costs,Diversity Travel,PIN053365,617.44,
FCDO,CSC,21/05/2021,Scholar Travel,Award Costs,Diversity Travel,PIN053365,51.19,
FCDO,CSC,21/05/2021,Scholar Travel,Award Costs,Diversity Travel,PIN053365,808.31,
FCDO,CSC,21/05/2021,Scholar Travel,Award Costs,Diversity Travel,PIN053365,808.31,
FCDO,CSC,21/05/2021,Scholar Travel,Award Costs,Diversity Travel,PIN053365,808.31,
FCDO,CSC,21/05/2021,Scholar Travel,Award Costs,Diversity Travel,PIN053366,25.7,
FCDO,CSC,21/05/2021,Scholar Travel,Award Costs,Diversity Travel,PIN053366,369.9,
FCDO,CSC,21/05/2021,Scholar Travel,Award Costs,Diversity Travel,PIN053366,1030.54,
FCDO,CSC,21/05/2021,Scholar Travel,Award Costs,Diversity Travel,PIN053366,24,
FCDO,CSC,21/05/2021,Fieldwork Airfare,Award Costs,Diversity Travel,PIN053366,807.88,
FCDO,CSC,21/05/2021,Scholar Travel,Award Costs,Diversity Travel,PIN053366,63.6,
FCDO,CSC,21/05/2021,Scholar Travel,Award Costs,Diversity Travel,PIN053366,142.6,
FCDO,CSC,21/05/2021,Scholar Travel,Award Costs,Diversity Travel,PIN053366,808.02,
FCDO,CSC,21/05/2021,Scholar Travel,Award Costs,Diversity Travel,PIN053366,808.02,
FCDO,CSC,21/05/2021,Scholar Travel,Award Costs,Diversity Travel,PIN053366,560.1,
FCDO,CSC,21/05/2021,Scholar Travel,Award Costs,Diversity Travel,PIN053366,50,
FCDO,CSC,21/05/2021,Scholar Travel,Award Costs,Diversity Travel,PIN053366,101.9,
FCDO,CSC,21/05/2021,Fieldwork Airfare,Award Costs,Diversity Travel,PIN053366,911.08,
FCDO,CSC,21/05/2021,Scholar Travel,Award Costs,Diversity Travel,PIN053366,326.02,
FCDO,CSC,21/05/2021,Scholar Travel,Award Costs,Diversity Travel,PIN053366,-808.02,
FCDO,CSC,21/05/2021,Tuition Fee,Award Costs,The University of Leeds,PIN053367,18000,
FCDO,CSC,21/05/2021,Award Support Costs,Award Costs,University of Glasgow,PIN053368,6000,
FCDO,CSC,21/05/2021,Award Support Costs,Award Costs,University of Glasgow,PIN053370,15000,
FCDO,CSC,21/05/2021,Scholar Allowances,Award Costs,University of Aberdeen,PIN053371,200,
FCDO,CSC,21/05/2021,Scholar Allowances,Award Costs,University of Aberdeen,PIN053371,225,
FCDO,CSC,21/05/2021,Visa Costs,Award Costs,University of Aberdeen,PIN053371,79,
FCDO,CSC,21/05/2021,Scholar Allowances,Award Costs,University of Aberdeen,PIN053371,75,
FCDO,CSC,21/05/2021,Scholar Travel,Award Costs,University of Aberdeen,PIN053371,742.7,
FCDO,CSC,21/05/2021,Scholar Allowances,Award Costs,University of Aberdeen,PIN053372,200,
FCDO,CSC,21/05/2021,Scholar Allowances,Award Costs,University of Aberdeen,PIN053372,225,
FCDO,CSC,21/05/2021,Visa Costs,Award Costs,University of Aberdeen,PIN053372,90,
FCDO,CSC,21/05/2021,Scholar Travel,Award Costs,University of Aberdeen,PIN053372,437.52,
FCDO,CSC,21/05/2021,Scholar Allowances,Award Costs,University of Aberdeen,PIN053373,200,
FCDO,CSC,21/05/2021,Scholar Allowances,Award Costs,University of Aberdeen,PIN053373,225,
FCDO,CSC,21/05/2021,Visa Costs,Award Costs,University of Aberdeen,PIN053373,17,
FCDO,CSC,21/05/2021,Scholar Travel,Award Costs,University of Aberdeen,PIN053373,451.22,
FCDO,CSC,21/05/2021,Scholar Allowances,Award Costs,University of Aberdeen,PIN053375,200,
FCDO,CSC,21/05/2021,Scholar Allowances,Award Costs,University of Aberdeen,PIN053375,225,
FCDO,CSC,21/05/2021,Visa Costs,Award Costs,University of Aberdeen,PIN053375,115,
FCDO,CSC,21/05/2021,Scholar Travel,Award Costs,University of Aberdeen,PIN053375,688.62,
FCDO,CSC,21/05/2021,Tuition Fee,Award Costs,The University of Edinburgh,PIN053378,10950,
FCDO,CSC,21/05/2021,Tuition Fee,Award Costs,The University of Edinburgh,PIN053379,915,
FCDO,CSC,21/05/2021,Tuition Fee,Award Costs,Queens University Belfast,PIN053381,46460,
FCDO,CSC,21/05/2021,Tuition Fee,Award Costs,Queen Mary University of London,PIN053382,168500,
FCDO,CSC,21/05/2021,Tuition Fee,Award Costs,University of Dundee,PIN053385,26046.65,
FCDO,CSC,21/05/2021,Scholar Allowances,Award Costs,University of Aberdeen,PIN053387,200,
FCDO,CSC,21/05/2021,Scholar Travel,Award Costs,University of Aberdeen,PIN053387,603.44,
FCDO,CSC,21/05/2021,Scholar Allowances,Award Costs,University of Aberdeen,PIN053388,200,
FCDO,CSC,21/05/2021,Scholar Travel,Award Costs,University of Aberdeen,PIN053388,1142.7,
FCDO,CSC,21/05/2021,Scholar Allowances,Award Costs,University of Aberdeen,PIN053390,200,
FCDO,CSC,21/05/2021,Scholar Travel,Award Costs,University of Aberdeen,PIN053390,590,
FCDO,CSC,21/05/2021,Scholar Allowances,Award Costs,Queen Margaret University,PIN053392,675,
FCDO,CSC,21/05/2021,Scholar Allowances,Award Costs,Queen Margaret University,PIN053392,600,
FCDO,CSC,21/05/2021,Award Support Costs,Award Costs,University of Glasgow,PIN053393,5000,
FCDO,CSC,21/05/2021,Award Support Costs,Award Costs,University of Glasgow,PIN053394,4230,
FCDO,CSC,21/05/2021,Award Support Costs,Award Costs,University of Glasgow,PIN053395,6500,
FCDO,CSC,21/05/2021,Miscellaneous,Programme Costs,Way With Words Group,PIN053397,523.92,
FCDO,CSC,19/05/2021,Scholar Allowances,Award Costs,Scholar,PIN053398,250,
FCDO,CSC,19/05/2021,Scholar Stipend,Award Costs,Scholar,PIN053398,1116,
FCDO,CSC,19/05/2021,Scholar Allowances,Award Costs,Scholar,PIN053399,275,
FCDO,CSC,19/05/2021,Scholar Stipend,Award Costs,Scholar,PIN053399,274.99,
FCDO,CSC,21/05/2021,Scholar Stipend,Award Costs,Scholar,PIN053400,1401.33,
FCDO,CSC,21/05/2021,Scholar Allowances,Award Costs,Scholar,PIN053401,125.11,
FCDO,CSC,21/05/2021,Scholar Stipend,Award Costs,Scholar,PIN053401,1254.63,
FCDO,CSC,21/05/2021,Scholar Allowances,Award Costs,Scholar,PIN053401,63.08,
FCDO,CSC,21/05/2021,Scholar Allowances,Award Costs,Scholar,PIN053403,31.54,
FCDO,CSC,21/05/2021,Scholar Allowances,Award Costs,Scholar,PIN053403,275,
FCDO,CSC,21/05/2021,Scholar Allowances,Award Costs,Scholar,PIN053403,240.57,
FCDO,CSC,21/05/2021,Scholar Stipend,Award Costs,Scholar,PIN053403,1181.3,
FCDO,CSC,24/05/2021,Scholar Allowances,Award Costs,Scholar,PIN053404,150,
FCDO,CSC,24/05/2021,Scholar Stipend,Award Costs,Scholar,PIN053404,1712.15,
FCDO,CSC,24/05/2021,Scholar Allowances,Award Costs,Scholar,PIN053404,150,
FCDO,CSC,24/05/2021,Scholar Stipend,Award Costs,Scholar,PIN053404,1475.03,
FCDO,CSC,24/05/2021,Bank Charges,Programme Costs,MasterCard Prepaid Management Services Ltd,PIN053404,34.87,
FCDO,CSC,26/05/2021,Scholar Stipend,Award Costs,Scholar,PIN053405,1116,
FCDO,CSC,26/05/2021,Scholar Allowances,Award Costs,Scholar,PIN053405,962.28,
FCDO,CSC,26/05/2021,Bank Charges,Programme Costs,MasterCard Prepaid Management Services Ltd,PIN053405,20.78,
FCDO,CSC,25/05/2021,Scholar Stipend,Award Costs,Scholar,PIN053406,1369,
FCDO,CSC,28/05/2021,Award Support Costs,Award Costs,University of Glasgow,PIN053407,700,
FCDO,CSC,28/05/2021,Tuition Fee,Award Costs,University of Glasgow,PIN053408,18000,
FCDO,CSC,28/05/2021,Tuition Fee,Award Costs,University of Strathclyde,PIN053409,16100,
FCDO,CSC,28/05/2021,Award Support Costs,Award Costs,University of Strathclyde,PIN053410,8000,
FCDO,CSC,28/05/2021,Award Support Costs,Award Costs,Glasgow Caledonian University,PIN053411,5000,
FCDO,CSC,28/05/2021,Tuition Fee,Award Costs,University of Glasgow,PIN053415,14613.33,
FCDO,CSC,28/05/2021,Tuition Fee,Award Costs,Kings College London,PIN053416,8316,
FCDO,CSC,28/05/2021,Tuition Fee,Award Costs,University of Glasgow,PIN053417,-17536,
FCDO,CSC,28/05/2021,Tuition Fee,Award Costs,Bangor University,PIN053418,2000,
FCDO,CSC,28/05/2021,Tuition Fee,Award Costs,University of Glasgow,PIN053419,22500,
FCDO,CSC,28/05/2021,Tuition Fee,Award Costs,University of Glasgow,PIN053420,-18000,
FCDO,CSC,28/05/2021,Tuition Fee,Award Costs,University of Glasgow,PIN053421,13152,
FCDO,CSC,28/05/2021,Scholar Engagement,Programme Costs,AccessEd Charity,PIN053424,5262,
FCDO,CSC,28/05/2021,Scholar Stipend,Award Costs,Scholar,PIN053431,721.86,
FCDO,CSC,28/05/2021,Scholar Stipend,Award Costs,Scholar,PIN053432,721.86,
FCDO,CSC,28/05/2021,Scholar Stipend,Award Costs,Scholar,PIN053433,721.86,
FCDO,CSC,28/05/2021,Scholar Stipend,Award Costs,Scholar,PIN053436,721.86,
FCDO,CSC,28/05/2021,Scholar Stipend,Award Costs,Scholar,PIN053440,721.86,
FCDO,CSC,28/05/2021,Scholar Stipend,Award Costs,Scholar,PIN053442,721.86,
FCDO,CSC,28/05/2021,Scholar Stipend,Award Costs,Scholar,PIN053444,962.28,
FCDO,CSC,28/05/2021,Scholar Stipend,Award Costs,Scholar,PIN053445,962.28,
FCDO,CSC,28/05/2021,Scholar Allowances,Award Costs,Scholar,PIN053507,433,
FCDO,CSC,28/05/2021,Scholar Stipend,Award Costs,Scholar,PIN053507,789.74,
FCDO,CSC,28/05/2021,Bank Charges,Programme Costs,MasterCard Prepaid Management Services Ltd,PIN053507,12.23,
FCDO,CSC,18/05/2021,Tuition Fee,Award Costs,University of Aberdeen,PRF000217,-1850,
FCDO,CSC,06/05/2021,Engagement,Programme Costs,NatWest CC,NOM001066,181.3,
FCDO,CSC,06/05/2021,Engagement,Programme Costs,NatWest CC,NOM001066,19,
FCDO,CSC,06/05/2021,Engagement,Programme Costs,NatWest CC,NOM001066,59,
FCDO,CSC,06/05/2021,Engagement,Programme Costs,NatWest CC,NOM001066,9.99,
FCDO,CSC,06/05/2021,Engagement,Programme Costs,NatWest CC,NOM001066,177.58,
FCDO,CSC,06/05/2021,Engagement,Programme Costs,NatWest CC,NOM001066,32.5,
FCDO,CSC,06/05/2021,Engagement,Programme Costs,NatWest CC,NOM001066,58.13,
FCDO,CSC,06/05/2021,Engagement,Programme Costs,NatWest CC,NOM001066,15.01,
FCDO,CSC,06/05/2021,Engagement,Programme Costs,NatWest CC,NOM001066,18.62,
FCDO,CSC,06/05/2021,Engagement,Programme Costs,NatWest CC,NOM001066,33.54,
FCDO,CSC,06/05/2021,Engagement,Programme Costs,NatWest CC,NOM001066,105.83,
FCDO,CSC,06/05/2021,Engagement,Programme Costs,NatWest CC,NOM001066,19,
FCDO,CSC,04/06/2021,Engagement,Programme Costs,NatWest CC,NOM001060,19,
FCDO,CSC,04/06/2021,Engagement,Programme Costs,NatWest CC,NOM001060,215.67,
FCDO,CSC,04/06/2021,Engagement,Programme Costs,NatWest CC,NOM001060,59,
FCDO,CSC,04/06/2021,Scholar Engagement,Programme Costs,NatWest CC,NOM001060,35,
FCDO,CSC,04/06/2021,Engagement,Programme Costs,NatWest CC,NOM001060,9.99,
FCDO,CSC,04/06/2021,Scholar Engagement,Programme Costs,NatWest CC,NOM001060,15,
FCDO,CSC,04/06/2021,Engagement,Programme Costs,NatWest CC,NOM001060,141.24,
FCDO,CSC,04/06/2021,Engagement,Programme Costs,NatWest CC,NOM001060,245.72,
FCDO,CSC,04/06/2021,Engagement,Programme Costs,NatWest CC,NOM001060,18.57,
FCDO,CSC,04/06/2021,Engagement,Programme Costs,NatWest CC,NOM001060,177.46,
FCDO,CSC,18/06/2021,Scholar Stipend,Award Costs,Scholar,NOM001062,-8268.49,
FCDO,CSC,07/06/2021,Tuition Fee,Award Costs,University of Liverpool,PIN053447,27981.67,
FCDO,CSC,07/06/2021,Tuition Fee,Programme Costs,University of Stirling,PIN053451,1991.69,
FCDO,CSC,07/06/2021,Tuition Fee,Programme Costs,University of Stirling,PIN053451,1500,
FCDO,CSC,07/06/2021,Tuition Fee,Award Costs,The University of Edinburgh,PIN053454,616,
FCDO,CSC,07/06/2021,Tuition Fee,Award Costs,University College London Fees,PIN053455,7669.23,
FCDO,CSC,07/06/2021,Tuition Fee,Award Costs,University of Glasgow,PIN053456,8768,
FCDO,CSC,07/06/2021,Tuition Fee,Award Costs,University of Dundee,PIN053460,17560,
FCDO,CSC,07/06/2021,Award Support Costs,Award Costs,University of St  Andrews,PIN053464,5000,
FCDO,CSC,07/06/2021,Reimbursements,Award Costs,Scholar,PIN053465,85,
FCDO,CSC,07/06/2021,Visa Costs,Award Costs,Scholar,PIN053465,729.2,
FCDO,CSC,07/06/2021,Tuition Fee,Award Costs,Leeds Beckett University,PIN053467,16250,
FCDO,CSC,07/06/2021,Tuition Fee,Award Costs,Leeds Beckett University,PIN053467,9333.32,
FCDO,CSC,07/06/2021,Tuition Fee,Award Costs,Leeds Beckett University,PIN053469,16250,
FCDO,CSC,07/06/2021,Tuition Fee,Award Costs,Leeds Beckett University,PIN053469,19250,
FCDO,CSC,07/06/2021,Tuition Fee,Award Costs,University of Ulster,PIN053470,24135,
FCDO,CSC,07/06/2021,Tuition Fee,Award Costs,The University of Nottingham,PIN053471,3372.5,
FCDO,CSC,07/06/2021,Tuition Fee,Award Costs,The University of Nottingham,PIN053474,2023.5,
FCDO,CSC,07/06/2021,Tuition Fee,Award Costs,University of Aberdeen,PIN053475,3700,
FCDO,CSC,07/06/2021,Tuition Fee,Award Costs,Loughborough University,PIN053476,16880,
FCDO,CSC,07/06/2021,Visa Costs,Award Costs,University of Southampton,PIN053478,94.05,
FCDO,CSC,07/06/2021,Scholar Allowances,Award Costs,University of Southampton,PIN053478,200,
FCDO,CSC,07/06/2021,Scholar Allowances,Award Costs,University of Southampton,PIN053478,225,
FCDO,CSC,07/06/2021,Scholar Travel,Award Costs,University of Southampton,PIN053478,850.9,
FCDO,CSC,07/06/2021,Tuition Fee,Award Costs,University of Glasgow,PIN053479,21920,
FCDO,CSC,07/06/2021,Scholar Allowances,Award Costs,Scholar,PIN053502,1439.22,
FCDO,CSC,07/06/2021,Scholar Allowances,Award Costs,Scholar,PIN053503,869.72,
FCDO,CSC,07/06/2021,Scholar Allowances,Award Costs,Scholar,PIN053503,1724.78,
FCDO,CSC,07/06/2021,Scholar Allowances,Award Costs,Scholar,PIN053504,1638.15,
FCDO,CSC,07/06/2021,Scholar Allowances,Award Costs,Scholar,PIN053505,720,
FCDO,CSC,07/06/2021,Scholar Allowances,Award Costs,Scholar,PIN053505,720,
FCDO,CSC,07/06/2021,Scholar Allowances,Award Costs,Scholar,PIN053506,2638,
FCDO,CSC,01/06/2021,Scholar Allowances,Award Costs,Scholar,PIN053508,262,
FCDO,CSC,01/06/2021,Scholar Allowances,Award Costs,Scholar,PIN053508,262,
FCDO,CSC,01/06/2021,Scholar Allowances,Award Costs,Scholar,PIN053508,262,
FCDO,CSC,01/06/2021,Bank Charges,Programme Costs,MasterCard Prepaid Management Services Ltd,PIN053508,7.86,
FCDO,CSC,02/06/2021,Visa Costs,Award Costs,Scholar,PIN053509,484,
FCDO,CSC,02/06/2021,Scholar Stipend,Award Costs,Scholar,PIN053509,481.14,
FCDO,CSC,02/06/2021,Scholar Stipend,Award Costs,Scholar,PIN053509,481.14,
FCDO,CSC,02/06/2021,Scholar Stipend,Award Costs,Scholar,PIN053509,481.14,
FCDO,CSC,02/06/2021,Scholar Stipend,Award Costs,Scholar,PIN053509,481.14,
FCDO,CSC,02/06/2021,Scholar Stipend,Award Costs,Scholar,PIN053509,1203,
FCDO,CSC,02/06/2021,Scholar Stipend,Award Costs,Scholar,PIN053509,481.14,
FCDO,CSC,02/06/2021,Scholar Stipend,Award Costs,Scholar,PIN053509,481.14,
FCDO,CSC,02/06/2021,Scholar Stipend,Award Costs,Scholar,PIN053509,481.14,
FCDO,CSC,02/06/2021,Scholar Stipend,Award Costs,Scholar,PIN053509,481.14,
FCDO,CSC,02/06/2021,Scholar Stipend,Award Costs,Scholar,PIN053509,481.14,
FCDO,CSC,02/06/2021,Scholar Stipend,Award Costs,Scholar,PIN053509,481.14,
FCDO,CSC,02/06/2021,Scholar Stipend,Award Costs,Scholar,PIN053509,481.14,
FCDO,CSC,02/06/2021,Scholar Stipend,Award Costs,Scholar,PIN053509,481.14,
FCDO,CSC,02/06/2021,Scholar Stipend,Award Costs,Scholar,PIN053509,481.14,
FCDO,CSC,02/06/2021,Scholar Stipend,Award Costs,Scholar,PIN053509,721.86,
FCDO,CSC,02/06/2021,Scholar Stipend,Award Costs,Scholar,PIN053509,481.14,
FCDO,CSC,02/06/2021,Scholar Stipend,Award Costs,Scholar,PIN053509,481.14,
FCDO,CSC,02/06/2021,Scholar Stipend,Award Costs,Scholar,PIN053509,481.14,
FCDO,CSC,02/06/2021,Scholar Stipend,Award Costs,Scholar,PIN053509,481.14,
FCDO,CSC,02/06/2021,Scholar Stipend,Award Costs,Scholar,PIN053509,481.14,
FCDO,CSC,02/06/2021,Scholar Stipend,Award Costs,Scholar,PIN053509,481.14,
FCDO,CSC,02/06/2021,Scholar Stipend,Award Costs,Scholar,PIN053509,481.14,
FCDO,CSC,02/06/2021,Scholar Stipend,Award Costs,Scholar,PIN053509,481.14,
FCDO,CSC,02/06/2021,Scholar Stipend,Award Costs,Scholar,PIN053509,481.14,
FCDO,CSC,02/06/2021,Scholar Stipend,Award Costs,Scholar,PIN053509,481.14,
FCDO,CSC,02/06/2021,Scholar Stipend,Award Costs,Scholar,PIN053509,481.14,
FCDO,CSC,02/06/2021,Scholar Stipend,Award Costs,Scholar,PIN053509,481.14,
FCDO,CSC,02/06/2021,Scholar Stipend,Award Costs,Scholar,PIN053509,481.14,
FCDO,CSC,02/06/2021,Scholar Stipend,Award Costs,Scholar,PIN053509,481.14,
FCDO,CSC,02/06/2021,Scholar Stipend,Award Costs,Scholar,PIN053509,481.14,
FCDO,CSC,02/06/2021,Scholar Stipend,Award Costs,Scholar,PIN053509,721.86,
FCDO,CSC,02/06/2021,Scholar Stipend,Award Costs,Scholar,PIN053509,481.14,
FCDO,CSC,02/06/2021,Scholar Stipend,Award Costs,Scholar,PIN053509,481.14,
FCDO,CSC,02/06/2021,Scholar Stipend,Award Costs,Scholar,PIN053509,481.14,
FCDO,CSC,02/06/2021,Scholar Stipend,Award Costs,Scholar,PIN053509,481.14,
FCDO,CSC,02/06/2021,Scholar Stipend,Award Costs,Scholar,PIN053509,481.14,
FCDO,CSC,02/06/2021,Scholar Stipend,Award Costs,Scholar,PIN053509,481.14,
FCDO,CSC,02/06/2021,Scholar Stipend,Award Costs,Scholar,PIN053509,481.14,
FCDO,CSC,02/06/2021,Scholar Stipend,Award Costs,Scholar,PIN053509,481.14,
FCDO,CSC,02/06/2021,Scholar Stipend,Award Costs,Scholar,PIN053509,481.14,
FCDO,CSC,02/06/2021,Bank Charges,Programme Costs,MasterCard Prepaid Management Services Ltd,PIN053509,209.28,
FCDO,CSC,11/06/2021,Scholar Allowances,Award Costs,Scholar,PIN053511,600,
FCDO,CSC,11/06/2021,Scholar Allowances,Award Costs,Diversity Travel,PIN053514,1795,
FCDO,CSC,11/06/2021,Scholar Travel,Award Costs,Diversity Travel,PIN053514,900.82,
FCDO,CSC,11/06/2021,Scholar Allowances,Award Costs,Diversity Travel,PIN053514,1795,
FCDO,CSC,11/06/2021,Scholar Travel,Award Costs,Diversity Travel,PIN053514,705.14,
FCDO,CSC,11/06/2021,Scholar Allowances,Award Costs,Diversity Travel,PIN053514,1795,
FCDO,CSC,11/06/2021,Scholar Travel,Award Costs,Diversity Travel,PIN053514,546.98,
FCDO,CSC,11/06/2021,Scholar Allowances,Award Costs,Diversity Travel,PIN053514,1795,
FCDO,CSC,11/06/2021,Scholar Allowances,Award Costs,Diversity Travel,PIN053514,1795,
FCDO,CSC,11/06/2021,Scholar Travel,Award Costs,Diversity Travel,PIN053514,1005.42,
FCDO,CSC,11/06/2021,Scholar Travel,Award Costs,Diversity Travel,PIN053514,759.76,
FCDO,CSC,11/06/2021,Scholar Travel,Award Costs,Diversity Travel,PIN053514,747.89,
FCDO,CSC,11/06/2021,Scholar Travel,Award Costs,Diversity Travel,PIN053514,539.92,
FCDO,CSC,11/06/2021,Scholar Travel,Award Costs,Diversity Travel,PIN053514,509.18,
FCDO,CSC,11/06/2021,Scholar Travel,Award Costs,Diversity Travel,PIN053514,495.75,
FCDO,CSC,11/06/2021,Scholar Travel,Award Costs,Diversity Travel,PIN053514,462.68,
FCDO,CSC,11/06/2021,Scholar Travel,Award Costs,Diversity Travel,PIN053514,427,
FCDO,CSC,11/06/2021,Scholar Travel,Award Costs,Diversity Travel,PIN053514,396.4,
FCDO,CSC,11/06/2021,Scholar Travel,Award Costs,Diversity Travel,PIN053514,372.7,
FCDO,CSC,11/06/2021,Scholar Travel,Award Costs,Diversity Travel,PIN053514,362.37,
FCDO,CSC,11/06/2021,Scholar Travel,Award Costs,Diversity Travel,PIN053514,64,
FCDO,CSC,11/06/2021,Scholar Travel,Award Costs,Diversity Travel,PIN053514,61,
FCDO,CSC,11/06/2021,Scholar Travel,Award Costs,Diversity Travel,PIN053514,48.4,
FCDO,CSC,11/06/2021,Scholar Travel,Award Costs,Diversity Travel,PIN053514,36.9,
FCDO,CSC,11/06/2021,Scholar Travel,Award Costs,Diversity Travel,PIN053514,36.9,
FCDO,CSC,11/06/2021,Scholar Travel,Award Costs,Diversity Travel,PIN053514,33.1,
FCDO,CSC,11/06/2021,Scholar Travel,Award Costs,Diversity Travel,PIN053514,29.5,
FCDO,CSC,11/06/2021,Scholar Travel,Award Costs,Diversity Travel,PIN053514,25,
FCDO,CSC,11/06/2021,Scholar Travel,Award Costs,Diversity Travel,PIN053514,23,
FCDO,CSC,11/06/2021,Scholar Travel,Award Costs,Diversity Travel,PIN053514,20,
FCDO,CSC,07/06/2021,Scholar Allowances,Award Costs,Scholar,PIN053516,433,
FCDO,CSC,07/06/2021,Scholar Stipend,Award Costs,Scholar,PIN053516,685.55,
FCDO,CSC,07/06/2021,Scholar Allowances,Award Costs,Scholar,PIN053516,433,
FCDO,CSC,07/06/2021,Scholar Stipend,Award Costs,Scholar,PIN053516,655.72,
FCDO,CSC,07/06/2021,Scholar Allowances,Award Costs,Scholar,PIN053516,433,
FCDO,CSC,07/06/2021,Scholar Stipend,Award Costs,Scholar,PIN053516,519.71,
FCDO,CSC,07/06/2021,Bank Charges,Programme Costs,MasterCard Prepaid Management Services Ltd,PIN053516,31.61,
FCDO,CSC,08/06/2021,Visa Costs,Award Costs,Scholar,PIN053517,258,
FCDO,CSC,08/06/2021,Award Support Costs,Award Costs,Scholar,PIN053517,805,
FCDO,CSC,08/06/2021,Scholar Allowances,Award Costs,Scholar,PIN053517,119.99,
FCDO,CSC,08/06/2021,Visa Costs,Award Costs,Scholar,PIN053517,273,
FCDO,CSC,08/06/2021,Scholar Allowances,Award Costs,Scholar,PIN053517,433,
FCDO,CSC,08/06/2021,Scholar Stipend,Award Costs,Scholar,PIN053517,306.06,
FCDO,CSC,08/06/2021,Scholar Allowances,Award Costs,Scholar,PIN053517,433,
FCDO,CSC,08/06/2021,Scholar Stipend,Award Costs,Scholar,PIN053517,852.32,
FCDO,CSC,08/06/2021,Bank Charges,Programme Costs,MasterCard Prepaid Management Services Ltd,PIN053517,34.8,
FCDO,CSC,07/06/2021,Visa Costs,Award Costs,Scholar,PIN053518,134,
FCDO,CSC,07/06/2021,Visa Costs,Award Costs,Scholar,PIN053518,42,
FCDO,CSC,07/06/2021,Visa Costs,Award Costs,Scholar,PIN053518,17,
FCDO,CSC,07/06/2021,Visa Costs,Award Costs,Scholar,PIN053518,42,
FCDO,CSC,07/06/2021,Bank Charges,Programme Costs,MasterCard Prepaid Management Services Ltd,PIN053518,2.35,
FCDO,CSC,18/06/2021,Scholar Travel,Award Costs,University of Bristol,PIN053520,592.66,
FCDO,CSC,18/06/2021,Immigration Health Surcharge,Award Costs,Scholar,PIN053522,235,
FCDO,CSC,18/06/2021,Visa Costs,Award Costs,Scholar,PIN053522,494.2,
FCDO,CSC,18/06/2021,Scholar Travel,Award Costs,Scholar,PIN053524,1063,
FCDO,CSC,18/06/2021,Award Support Costs,Award Costs,University of Bristol,PIN053525,3000,
FCDO,CSC,18/06/2021,Award Support Costs,Award Costs,Queen Mary University of London,PIN053526,1181,
FCDO,CSC,18/06/2021,Scholar Allowances,Award Costs,Scholar,PIN053529,600,
FCDO,CSC,18/06/2021,Tuition Fee,Award Costs,University of Bristol,PIN053531,18000,
FCDO,CSC,18/06/2021,Tuition Fee,Award Costs,The University of Edinburgh,PIN053535,4550,
FCDO,CSC,18/06/2021,Tuition Fee,Award Costs,The University of Edinburgh,PIN053537,6750,
FCDO,CSC,18/06/2021,Tuition Fee,Award Costs,The University of Edinburgh,PIN053538,2000,
FCDO,CSC,18/06/2021,Tuition Fee,Award Costs,The University of Edinburgh,PIN053538,15000,
FCDO,CSC,18/06/2021,Tuition Fee,Award Costs,University of Dundee,PIN053539,14520,
FCDO,CSC,18/06/2021,Award Support Costs,Award Costs,University of Portsmouth,PIN053540,5000,
DFE,CSC,18/06/2021,Scholar Allowances,Award Costs,University of Oxford,PIN053541,122.94,
DFE,CSC,18/06/2021,Scholar Travel,Award Costs,University of Oxford,PIN053541,934.85,
FCDO,CSC,18/06/2021,Alumni Engagement,Programme Costs,The British Council,PIN053544,20000,
FCDO,CSC,18/06/2021,Alumni Engagement,Programme Costs,The British Council,PIN053544,49188.07,
FCDO,CSC,16/06/2021,Scholar Stipend,Award Costs,Scholar,PIN053546,659.97,
FCDO,CSC,17/06/2021,Scholar Stipend,Award Costs,Scholar,PIN053547,1116,
FCDO,CSC,18/06/2021,Scholar Allowances,Award Costs,Scholar,PIN053548,433,
FCDO,CSC,18/06/2021,Scholar Stipend,Award Costs,Scholar,PIN053548,547.39,
FCDO,CSC,18/06/2021,Scholar Allowances,Award Costs,Scholar,PIN053548,433,
FCDO,CSC,18/06/2021,Scholar Stipend,Award Costs,Scholar,PIN053548,331.97,
FCDO,CSC,18/06/2021,Scholar Allowances,Award Costs,Scholar,PIN053548,433,
FCDO,CSC,18/06/2021,Scholar Stipend,Award Costs,Scholar,PIN053548,410.36,
FCDO,CSC,18/06/2021,Scholar Allowances,Award Costs,Scholar,PIN053548,433,
FCDO,CSC,18/06/2021,Scholar Stipend,Award Costs,Scholar,PIN053548,452.08,
FCDO,CSC,18/06/2021,Bank Charges,Programme Costs,MasterCard Prepaid Management Services Ltd,PIN053548,34.73,
FCDO,CSC,21/06/2021,Reimbursements,Award Costs,Scholar,PIN053549,149.5,
FCDO,CSC,21/06/2021,Award Support Costs,Award Costs,Scholar,PIN053549,508,
FCDO,CSC,21/06/2021,Reimbursements,Award Costs,Scholar,PIN053549,172,
FCDO,CSC,21/06/2021,Award Support Costs,Award Costs,Scholar,PIN053549,805,
FCDO,CSC,21/06/2021,Scholar Allowances,Award Costs,Scholar,PIN053549,170,
FCDO,CSC,21/06/2021,Scholar Allowances,Award Costs,Scholar,PIN053549,29.73,
FCDO,CSC,21/06/2021,Scholar Travel,Award Costs,Scholar,PIN053549,837.12,
FCDO,CSC,21/06/2021,Bank Charges,Programme Costs,MasterCard Prepaid Management Services Ltd,PIN053549,26.72,
FCDO,CSC,23/06/2021,Scholar Allowances,Award Costs,Scholar,PIN053550,433,
FCDO,CSC,23/06/2021,Scholar Stipend,Award Costs,Scholar,PIN053550,368.64,
FCDO,CSC,23/06/2021,Bank Charges,Programme Costs,MasterCard Prepaid Management Services Ltd,PIN053550,8.02,
FCDO,CSC,25/06/2021,Scholar Allowances,Award Costs,Scholar,PIN053552,564.24,
FCDO,CSC,25/06/2021,Award Support Costs,Award Costs,University of Reading,PIN053553,1275,
FCDO,CSC,25/06/2021,Award Support Costs,Award Costs,University of Greenwich,PIN053554,5000,
FCDO,CSC,25/06/2021,Tuition Fee,Award Costs,The University of Birmingham,PIN053555,17136,
FCDO,CSC,25/06/2021,Scholar Allowances,Award Costs,The Cambridge Commonwealth Trust,PIN053558,600,
FCDO,CSC,25/06/2021,Award Support Costs,Award Costs,The University of Leeds,PIN053559,6000,
FCDO,CSC,25/06/2021,Tuition Fee,Award Costs,Queens University Belfast,PIN053560,16396,
FCDO,CSC,25/06/2021,Tuition Fee,Award Costs,Queen Mary University of London,PIN053561,4800,
FCDO,CSC,25/06/2021,Tuition Fee,Award Costs,University of Southampton,PIN053562,82068,
FCDO,CSC,25/06/2021,Tuition Fee,Award Costs,University of Southampton,PIN053563,9398,
FCDO,CSC,25/06/2021,Tuition Fee,Award Costs,University of Southampton,PIN053564,3130,
FCDO,CSC,25/06/2021,Tuition Fee,Award Costs,University of Southampton,PIN053565,105516,
FCDO,CSC,25/06/2021,Visa Costs,Award Costs,The Cambridge Commonwealth Trust,PIN053566,318.93,
FCDO,CSC,25/06/2021,Scholar Travel,Award Costs,The Cambridge Commonwealth Trust,PIN053566,2556.13,
FCDO,CSC,25/06/2021,Scholar Travel,Award Costs,The Cambridge Commonwealth Trust,PIN053566,3995.2,
FCDO,CSC,25/06/2021,Scholar Allowances,Award Costs,The Cambridge Commonwealth Trust,PIN053566,200,
FCDO,CSC,25/06/2021,Scholar Travel,Award Costs,The Cambridge Commonwealth Trust,PIN053566,79.7,
FCDO,CSC,25/06/2021,Scholar Travel,Award Costs,The Cambridge Commonwealth Trust,PIN053567,-654.22,
FCDO,CSC,25/06/2021,Bank Charges,Programme Costs,MasterCard Prepaid Management Services Ltd,PIN053570,750,
FCDO,CSC,28/06/2021,Scholar Stipend,Award Costs,Scholar,PIN053571,3348,
FCDO,CSC,28/06/2021,Scholar Stipend,Award Costs,Scholar,PIN053572,3547.59,
FCDO,CSC,28/06/2021,Scholar Stipend,Award Costs,Scholar,PIN053573,3348,
FCDO,CSC,28/06/2021,Scholar Stipend,Award Costs,Scholar,PIN053574,2738,
FCDO,CSC,28/06/2021,Scholar Stipend,Award Costs,Scholar,PIN053575,3348,
FCDO,CSC,28/06/2021,Scholar Stipend,Award Costs,Scholar,PIN053576,3348,
FCDO,CSC,28/06/2021,Scholar Stipend,Award Costs,Scholar,PIN053577,1674,
FCDO,CSC,28/06/2021,Scholar Stipend,Award Costs,Scholar,PIN053578,4107,
FCDO,CSC,28/06/2021,Scholar Stipend,Award Costs,Scholar,PIN053579,3348,
FCDO,CSC,28/06/2021,Scholar Stipend,Award Costs,Scholar,PIN053580,4107,
FCDO,CSC,28/06/2021,Scholar Stipend,Award Costs,Scholar,PIN053581,2538.41,
FCDO,CSC,28/06/2021,Scholar Stipend,Award Costs,Scholar,PIN053582,3348,
FCDO,CSC,28/06/2021,Scholar Stipend,Award Costs,Scholar,PIN053583,1674,
FCDO,CSC,28/06/2021,Scholar Stipend,Award Costs,Scholar,PIN053584,3637.55,
FCDO,CSC,28/06/2021,Scholar Stipend,Award Costs,Scholar,PIN053585,3348,
FCDO,CSC,28/06/2021,Scholar Stipend,Award Costs,Scholar,PIN053586,3348,
FCDO,CSC,28/06/2021,Scholar Stipend,Award Costs,Scholar,PIN053587,3348,
FCDO,CSC,28/06/2021,Scholar Stipend,Award Costs,Scholar,PIN053589,3348,
FCDO,CSC,28/06/2021,Scholar Stipend,Award Costs,Scholar,PIN053590,3348,
FCDO,CSC,28/06/2021,Scholar Stipend,Award Costs,Scholar,PIN053591,2790,
FCDO,CSC,28/06/2021,Scholar Stipend,Award Costs,Scholar,PIN053592,4107,
FCDO,CSC,28/06/2021,Scholar Stipend,Award Costs,Scholar,PIN053593,3348,
FCDO,CSC,28/06/2021,Scholar Stipend,Award Costs,Scholar,PIN053594,3348,
FCDO,CSC,28/06/2021,Scholar Stipend,Award Costs,Scholar,PIN053595,1674,
FCDO,CSC,28/06/2021,Scholar Stipend,Award Costs,Scholar,PIN053596,3348,
FCDO,CSC,28/06/2021,Scholar Stipend,Award Costs,Scholar,PIN053597,3348,
FCDO,CSC,28/06/2021,Scholar Stipend,Award Costs,Scholar,PIN053598,3148.63,
FCDO,CSC,28/06/2021,Scholar Stipend,Award Costs,Scholar,PIN053599,4107,
FCDO,CSC,28/06/2021,Scholar Stipend,Award Costs,Scholar,PIN053600,2232,
FCDO,CSC,28/06/2021,Scholar Stipend,Award Costs,Scholar,PIN053601,2342,
FCDO,CSC,28/06/2021,Scholar Stipend,Award Costs,Scholar,PIN053602,869.66,
FCDO,CSC,28/06/2021,Scholar Stipend,Award Costs,Scholar,PIN053603,1413.97,
FCDO,CSC,28/06/2021,Scholar Stipend,Award Costs,Scholar,PIN053604,3348,
FCDO,CSC,28/06/2021,Scholar Stipend,Award Costs,Scholar,PIN053605,3348,
FCDO,CSC,28/06/2021,Scholar Stipend,Award Costs,Scholar,PIN053606,2781.98,
FCDO,CSC,28/06/2021,Scholar Stipend,Award Costs,Scholar,PIN053607,3038.64,
FCDO,CSC,28/06/2021,Scholar Stipend,Award Costs,Scholar,PIN053608,3348,
FCDO,CSC,28/06/2021,Scholar Stipend,Award Costs,Scholar,PIN053609,3348,
FCDO,CSC,28/06/2021,Scholar Stipend,Award Costs,Scholar,PIN053610,4107,
FCDO,CSC,28/06/2021,Scholar Stipend,Award Costs,Scholar,PIN053611,3348,
FCDO,CSC,28/06/2021,Scholar Stipend,Award Costs,Scholar,PIN053612,2232,
FCDO,CSC,28/06/2021,Scholar Stipend,Award Costs,Scholar,PIN053613,3348,
FCDO,CSC,28/06/2021,Scholar Stipend,Award Costs,Scholar,PIN053614,3348,
FCDO,CSC,28/06/2021,Scholar Stipend,Award Costs,Scholar,PIN053615,3348,
FCDO,CSC,28/06/2021,Scholar Stipend,Award Costs,Scholar,PIN053616,3348,
FCDO,CSC,28/06/2021,Scholar Stipend,Award Costs,Scholar,PIN053617,3348,
FCDO,CSC,28/06/2021,Scholar Stipend,Award Costs,Scholar,PIN053618,3348,
FCDO,CSC,28/06/2021,Scholar Stipend,Award Costs,Scholar,PIN053619,3348,
FCDO,CSC,28/06/2021,Scholar Stipend,Award Costs,Scholar,PIN053620,3348,
FCDO,CSC,28/06/2021,Scholar Stipend,Award Costs,Scholar,PIN053621,1674,
FCDO,CSC,28/06/2021,Scholar Stipend,Award Costs,Scholar,PIN053622,3952.39,
FCDO,CSC,28/06/2021,Scholar Stipend,Award Costs,Scholar,PIN053623,2232,
FCDO,CSC,28/06/2021,Scholar Stipend,Award Costs,Scholar,PIN053624,3348,
FCDO,CSC,28/06/2021,Scholar Stipend,Award Costs,Scholar,PIN053625,2738,
FCDO,CSC,28/06/2021,Scholar Stipend,Award Costs,Scholar,PIN053626,3348,
FCDO,CSC,28/06/2021,Scholar Stipend,Award Costs,Scholar,PIN053627,3348,
FCDO,CSC,28/06/2021,Scholar Stipend,Award Costs,Scholar,PIN053628,2232,
FCDO,CSC,28/06/2021,Scholar Stipend,Award Costs,Scholar,PIN053629,2032.63,
FCDO,CSC,28/06/2021,Scholar Stipend,Award Costs,Scholar,PIN053630,3221.96,
FCDO,CSC,28/06/2021,Scholar Stipend,Award Costs,Scholar,PIN053631,3952.39,
FCDO,CSC,28/06/2021,Scholar Stipend,Award Costs,Scholar,PIN053632,2818.64,
FCDO,CSC,28/06/2021,Scholar Stipend,Award Costs,Scholar,PIN053633,4107,
FCDO,CSC,28/06/2021,Scholar Stipend,Award Costs,Scholar,PIN053634,3348,
FCDO,CSC,28/06/2021,Scholar Stipend,Award Costs,Scholar,PIN053635,1116,
FCDO,CSC,28/06/2021,Scholar Stipend,Award Costs,Scholar,PIN053636,3348,
FCDO,CSC,28/06/2021,Scholar Stipend,Award Costs,Scholar,PIN053637,3348,
FCDO,CSC,28/06/2021,Scholar Stipend,Award Costs,Scholar,PIN053638,3348,
FCDO,CSC,28/06/2021,Scholar Stipend,Award Costs,Scholar,PIN053639,3348,
FCDO,CSC,28/06/2021,Scholar Stipend,Award Costs,Scholar,PIN053640,3075.3,
FCDO,CSC,28/06/2021,Scholar Stipend,Award Costs,Scholar,PIN053641,3348,
FCDO,CSC,28/06/2021,Scholar Stipend,Award Costs,Scholar,PIN053642,3348,
FCDO,CSC,28/06/2021,Scholar Stipend,Award Costs,Scholar,PIN053643,3348,
FCDO,CSC,28/06/2021,Scholar Stipend,Award Costs,Scholar,PIN053644,3348,
FCDO,CSC,28/06/2021,Scholar Stipend,Award Costs,Scholar,PIN053645,3348,
FCDO,CSC,28/06/2021,Scholar Stipend,Award Costs,Scholar,PIN053646,3348,
FCDO,CSC,28/06/2021,Scholar Stipend,Award Costs,Scholar,PIN053647,3348,
FCDO,CSC,28/06/2021,Scholar Stipend,Award Costs,Scholar,PIN053648,2781.98,
FCDO,CSC,28/06/2021,Scholar Stipend,Award Costs,Scholar,PIN053649,1674,
FCDO,CSC,28/06/2021,Scholar Stipend,Award Costs,Scholar,PIN053650,3348,
FCDO,CSC,28/06/2021,Scholar Stipend,Award Costs,Scholar,PIN053651,2232,
FCDO,CSC,28/06/2021,Scholar Stipend,Award Costs,Scholar,PIN053652,2053.5,
FCDO,CSC,28/06/2021,Scholar Stipend,Award Costs,Scholar,PIN053653,3348,
FCDO,CSC,28/06/2021,Scholar Stipend,Award Costs,Scholar,PIN053654,3348,
FCDO,CSC,28/06/2021,Scholar Stipend,Award Costs,Scholar,PIN053655,3348,
FCDO,CSC,28/06/2021,Scholar Stipend,Award Costs,Scholar,PIN053656,3637.55,
FCDO,CSC,28/06/2021,Scholar Stipend,Award Costs,Scholar,PIN053657,3952.39,
FCDO,CSC,28/06/2021,Scholar Stipend,Award Costs,Scholar,PIN053658,2232,
FCDO,CSC,28/06/2021,Scholar Stipend,Award Costs,Scholar,PIN053659,2965.31,
FCDO,CSC,28/06/2021,Scholar Stipend,Award Costs,Scholar,PIN053660,3295.29,
FCDO,CSC,28/06/2021,Scholar Stipend,Award Costs,Scholar,PIN053661,3348,
FCDO,CSC,28/06/2021,Scholar Stipend,Award Costs,Scholar,PIN053662,3348,
FCDO,CSC,28/06/2021,Scholar Stipend,Award Costs,Scholar,PIN053663,3258.63,
FCDO,CSC,28/06/2021,Scholar Stipend,Award Costs,Scholar,PIN053664,3348,
FCDO,CSC,28/06/2021,Scholar Stipend,Award Costs,Scholar,PIN053666,3348,
FCDO,CSC,28/06/2021,Scholar Stipend,Award Costs,Scholar,PIN053667,3348,
FCDO,CSC,28/06/2021,Scholar Stipend,Award Costs,Scholar,PIN053668,2232,
FCDO,CSC,28/06/2021,Scholar Stipend,Award Costs,Scholar,PIN053669,3348,
FCDO,CSC,28/06/2021,Scholar Stipend,Award Costs,Scholar,PIN053671,2708.65,
FCDO,CSC,28/06/2021,Scholar Stipend,Award Costs,Scholar,PIN053672,3348,
FCDO,CSC,28/06/2021,Scholar Stipend,Award Costs,Scholar,PIN053673,3348,
FCDO,CSC,28/06/2021,Scholar Stipend,Award Costs,Scholar,PIN053674,4042.34,
FCDO,CSC,28/06/2021,Scholar Stipend,Award Costs,Scholar,PIN053675,3348,
FCDO,CSC,28/06/2021,Scholar Stipend,Award Costs,Scholar,PIN053676,4107,
FCDO,CSC,28/06/2021,Scholar Stipend,Award Costs,Scholar,PIN053677,3348,
FCDO,CSC,28/06/2021,Scholar Stipend,Award Costs,Scholar,PIN053678,3348,
FCDO,CSC,28/06/2021,Scholar Stipend,Award Costs,Scholar,PIN053679,2232,
FCDO,CSC,28/06/2021,Scholar Stipend,Award Costs,Scholar,PIN053680,3637.55,
FCDO,CSC,28/06/2021,Scholar Stipend,Award Costs,Scholar,PIN053681,3221.96,
FCDO,CSC,28/06/2021,Scholar Stipend,Award Costs,Scholar,PIN053682,3221.96,
FCDO,CSC,28/06/2021,Scholar Stipend,Award Costs,Scholar,PIN053683,3348,
FCDO,CSC,28/06/2021,Scholar Stipend,Award Costs,Scholar,PIN053684,3348,
FCDO,CSC,28/06/2021,Scholar Stipend,Award Costs,Scholar,PIN053685,1674,
FCDO,CSC,28/06/2021,Scholar Stipend,Award Costs,Scholar,PIN053686,2232,
FCDO,CSC,28/06/2021,Scholar Stipend,Award Costs,Scholar,PIN053687,1482.65,
FCDO,CSC,28/06/2021,Scholar Stipend,Award Costs,Scholar,PIN053688,1674,
FCDO,CSC,28/06/2021,Scholar Stipend,Award Costs,Scholar,PIN053689,3348,
FCDO,CSC,28/06/2021,Scholar Stipend,Award Costs,Scholar,PIN053690,3148.63,
FCDO,CSC,28/06/2021,Scholar Stipend,Award Costs,Scholar,PIN053691,4107,
FCDO,CSC,28/06/2021,Scholar Stipend,Award Costs,Scholar,PIN053692,2891.98,
FCDO,CSC,28/06/2021,Scholar Stipend,Award Costs,Scholar,PIN053693,3348,
FCDO,CSC,28/06/2021,Scholar Stipend,Award Costs,Scholar,PIN053695,3295.29,
FCDO,CSC,28/06/2021,Scholar Stipend,Programme Costs,Scholar,PIN053696,2268.67,
FCDO,CSC,28/06/2021,Scholar Stipend,Award Costs,Scholar,PIN053697,3348,
FCDO,CSC,28/06/2021,Scholar Stipend,Award Costs,Scholar,PIN053698,3348,
FCDO,CSC,28/06/2021,Scholar Stipend,Award Costs,Scholar,PIN053699,3348,
FCDO,CSC,28/06/2021,Scholar Stipend,Award Costs,Scholar,PIN053700,3348,
FCDO,CSC,28/06/2021,Scholar Stipend,Award Costs,Scholar,PIN053701,1674,
FCDO,CSC,28/06/2021,Scholar Stipend,Award Costs,Scholar,PIN053702,2708.65,
FCDO,CSC,28/06/2021,Scholar Stipend,Award Costs,Scholar,PIN053703,2738,
FCDO,CSC,28/06/2021,Scholar Stipend,Award Costs,Scholar,PIN053704,1674,
FCDO,CSC,28/06/2021,Scholar Stipend,Award Costs,Scholar,PIN053705,3148.63,
FCDO,CSC,28/06/2021,Scholar Stipend,Award Costs,Scholar,PIN053706,3348,
FCDO,CSC,28/06/2021,Scholar Stipend,Award Costs,Scholar,PIN053707,1674,
FCDO,CSC,28/06/2021,Scholar Stipend,Award Costs,Scholar,PIN053708,3001.97,
FCDO,CSC,28/06/2021,Scholar Stipend,Award Costs,Scholar,PIN053709,2745.31,
FCDO,CSC,28/06/2021,Scholar Stipend,Award Costs,Scholar,PIN053710,3348,
FCDO,CSC,28/06/2021,Scholar Stipend,Award Costs,Scholar,PIN053711,3348,
FCDO,CSC,28/06/2021,Scholar Stipend,Award Costs,Scholar,PIN053712,3348,
FCDO,CSC,28/06/2021,Scholar Stipend,Award Costs,Scholar,PIN053713,3348,
FCDO,CSC,28/06/2021,Scholar Stipend,Award Costs,Scholar,PIN053714,3637.55,
FCDO,CSC,28/06/2021,Scholar Stipend,Award Costs,Scholar,PIN053715,1674,
FCDO,CSC,28/06/2021,Scholar Stipend,Award Costs,Scholar,PIN053716,3952.39,
FCDO,CSC,28/06/2021,Scholar Stipend,Award Costs,Scholar,PIN053717,2232,
FCDO,CSC,28/06/2021,Scholar Stipend,Award Costs,Scholar,PIN053718,549.98,
FCDO,CSC,28/06/2021,Scholar Stipend,Award Costs,Scholar,PIN053719,2738,
FCDO,CSC,28/06/2021,Scholar Stipend,Award Costs,Scholar,PIN053720,3295.29,
FCDO,CSC,28/06/2021,Scholar Stipend,Award Costs,Scholar,PIN053721,2493.44,
FCDO,CSC,28/06/2021,Scholar Stipend,Award Costs,Scholar,PIN053722,3502.62,
FCDO,CSC,28/06/2021,Scholar Stipend,Award Costs,Scholar,PIN053723,3348,
FCDO,CSC,28/06/2021,Scholar Stipend,Award Costs,Scholar,PIN053724,3075.3,
FCDO,CSC,28/06/2021,Scholar Stipend,Award Costs,Scholar,PIN053725,2053.5,
FCDO,CSC,28/06/2021,Scholar Stipend,Award Costs,Scholar,PIN053726,3348,
FCDO,CSC,28/06/2021,Scholar Stipend,Award Costs,Scholar,PIN053727,3348,
FCDO,CSC,28/06/2021,Scholar Stipend,Award Costs,Scholar,PIN053728,3348,
FCDO,CSC,28/06/2021,Scholar Stipend,Award Costs,Scholar,PIN053729,3348,
FCDO,CSC,28/06/2021,Scholar Stipend,Award Costs,Scholar,PIN053730,3348,
FCDO,CSC,28/06/2021,Scholar Stipend,Award Costs,Scholar,PIN053731,3348,
FCDO,CSC,28/06/2021,Scholar Stipend,Award Costs,Scholar,PIN053732,3348,
FCDO,CSC,28/06/2021,Scholar Stipend,Award Costs,Scholar,PIN053733,4107,
FCDO,CSC,28/06/2021,Scholar Stipend,Award Costs,Scholar,PIN053734,3348,
FCDO,CSC,28/06/2021,Scholar Stipend,Award Costs,Scholar,PIN053735,3348,
FCDO,CSC,28/06/2021,Scholar Stipend,Award Costs,Scholar,PIN053736,3348,
FCDO,CSC,28/06/2021,Scholar Stipend,Award Costs,Scholar,PIN053737,3348,
FCDO,CSC,28/06/2021,Scholar Stipend,Award Costs,Scholar,PIN053738,3348,
FCDO,CSC,28/06/2021,Scholar Stipend,Award Costs,Scholar,PIN053740,3348,
FCDO,CSC,28/06/2021,Scholar Stipend,Award Costs,Scholar,PIN053741,4107,
FCDO,CSC,28/06/2021,Scholar Stipend,Award Costs,Scholar,PIN053742,4107,
FCDO,CSC,28/06/2021,Scholar Stipend,Award Costs,Scholar,PIN053743,3348,
FCDO,CSC,28/06/2021,Scholar Stipend,Award Costs,Scholar,PIN053744,3348,
FCDO,CSC,28/06/2021,Scholar Stipend,Award Costs,Scholar,PIN053745,1674,
FCDO,CSC,28/06/2021,Scholar Stipend,Award Costs,Scholar,PIN053746,2855.31,
FCDO,CSC,28/06/2021,Scholar Stipend,Award Costs,Scholar,PIN053747,1152.67,
FCDO,CSC,28/06/2021,Scholar Stipend,Award Costs,Scholar,PIN053748,3348,
FCDO,CSC,28/06/2021,Scholar Stipend,Award Costs,Scholar,PIN053749,3348,
FCDO,CSC,28/06/2021,Scholar Stipend,Award Costs,Scholar,PIN053750,3348,
FCDO,CSC,28/06/2021,Scholar Stipend,Award Costs,Scholar,PIN053751,1674,
FCDO,CSC,28/06/2021,Scholar Stipend,Award Costs,Scholar,PIN053752,2232,
FCDO,CSC,28/06/2021,Scholar Stipend,Award Costs,Scholar,PIN053753,3348,
FCDO,CSC,28/06/2021,Scholar Stipend,Award Costs,Scholar,PIN053754,2738,
FCDO,CSC,28/06/2021,Scholar Stipend,Award Costs,Scholar,PIN053755,3348,
FCDO,CSC,28/06/2021,Scholar Stipend,Award Costs,Scholar,PIN053756,3348,
FCDO,CSC,28/06/2021,Scholar Stipend,Award Costs,Scholar,PIN053757,2818.64,
FCDO,CSC,28/06/2021,Scholar Stipend,Award Costs,Scholar,PIN053758,1116,
FCDO,CSC,28/06/2021,Scholar Stipend,Award Costs,Scholar,PIN053759,2738,
FCDO,CSC,28/06/2021,Scholar Stipend,Award Costs,Scholar,PIN053760,3348,
FCDO,CSC,28/06/2021,Scholar Stipend,Award Costs,Scholar,PIN053761,1500.99,
FCDO,CSC,28/06/2021,Scholar Stipend,Award Costs,Scholar,PIN053762,1674,
FCDO,CSC,28/06/2021,Scholar Stipend,Award Costs,Scholar,PIN053763,4107,
FCDO,CSC,28/06/2021,Scholar Stipend,Award Costs,Scholar,PIN053764,3348,
FCDO,CSC,28/06/2021,Scholar Stipend,Award Costs,Scholar,PIN053765,3258.63,
FCDO,CSC,28/06/2021,Scholar Stipend,Award Costs,Scholar,PIN053766,3348,
FCDO,CSC,28/06/2021,Scholar Stipend,Award Costs,Scholar,PIN053767,2232,
FCDO,CSC,28/06/2021,Scholar Stipend,Award Costs,Scholar,PIN053768,2232,
FCDO,CSC,28/06/2021,Scholar Stipend,Award Costs,Scholar,PIN053769,1071.31,
FCDO,CSC,28/06/2021,Scholar Stipend,Award Costs,Scholar,PIN053770,2818.64,
FCDO,CSC,28/06/2021,Scholar Stipend,Award Costs,Scholar,PIN053771,2738,
FCDO,CSC,28/06/2021,Scholar Stipend,Award Costs,Scholar,PIN053772,3348,
FCDO,CSC,28/06/2021,Scholar Stipend,Award Costs,Scholar,PIN053773,2232,
FCDO,CSC,28/06/2021,Scholar Stipend,Award Costs,Scholar,PIN053774,3348,
FCDO,CSC,28/06/2021,Scholar Stipend,Award Costs,Scholar,PIN053775,2232,
FCDO,CSC,28/06/2021,Scholar Stipend,Award Costs,Scholar,PIN053776,3348,
FCDO,CSC,28/06/2021,Scholar Stipend,Award Costs,Scholar,PIN053777,3348,
FCDO,CSC,28/06/2021,Scholar Stipend,Award Costs,Scholar,PIN053778,1674,
FCDO,CSC,28/06/2021,Scholar Stipend,Award Costs,Scholar,PIN053779,4107,
FCDO,CSC,28/06/2021,Scholar Stipend,Award Costs,Scholar,PIN053780,3348,
FCDO,CSC,28/06/2021,Scholar Stipend,Award Costs,Scholar,PIN053781,3295.29,
FCDO,CSC,28/06/2021,Scholar Stipend,Award Costs,Scholar,PIN053782,3348,
FCDO,CSC,28/06/2021,Scholar Stipend,Award Costs,Scholar,PIN053783,3348,
FCDO,CSC,28/06/2021,Scholar Stipend,Award Costs,Scholar,PIN053784,3348,
FCDO,CSC,28/06/2021,Scholar Stipend,Award Costs,Scholar,PIN053785,824.99,
FCDO,CSC,28/06/2021,Scholar Stipend,Award Costs,Scholar,PIN053786,3952.39,
FCDO,CSC,28/06/2021,Scholar Stipend,Award Costs,Scholar,PIN053787,4107,
FCDO,CSC,28/06/2021,Scholar Stipend,Award Costs,Scholar,PIN053788,3637.55,
FCDO,CSC,28/06/2021,Scholar Stipend,Award Costs,Scholar,PIN053789,2708.65,
FCDO,CSC,28/06/2021,Scholar Stipend,Award Costs,Scholar,PIN053790,1674,
FCDO,CSC,28/06/2021,Scholar Stipend,Award Costs,Scholar,PIN053791,2232,
FCDO,CSC,28/06/2021,Scholar Stipend,Award Costs,Scholar,PIN053792,4107,
FCDO,CSC,28/06/2021,Scholar Stipend,Award Costs,Scholar,PIN053793,3348,
FCDO,CSC,28/06/2021,Scholar Stipend,Award Costs,Scholar,PIN053794,4107,
FCDO,CSC,28/06/2021,Scholar Stipend,Award Costs,Scholar,PIN053795,1992.31,
FCDO,CSC,28/06/2021,Scholar Stipend,Award Costs,Scholar,PIN053796,2965.31,
FCDO,CSC,28/06/2021,Scholar Stipend,Award Costs,Scholar,PIN053797,4107,
FCDO,CSC,28/06/2021,Scholar Stipend,Award Costs,Scholar,PIN053798,3348,
FCDO,CSC,28/06/2021,Scholar Stipend,Award Costs,Scholar,PIN053799,3348,
FCDO,CSC,28/06/2021,Scholar Stipend,Award Costs,Scholar,PIN053800,3348,
FCDO,CSC,28/06/2021,Scholar Stipend,Award Costs,Scholar,PIN053801,3348,
FCDO,CSC,28/06/2021,Scholar Stipend,Award Costs,Scholar,PIN053802,2738,
FCDO,CSC,28/06/2021,Scholar Stipend,Award Costs,Scholar,PIN053803,2928.64,
FCDO,CSC,28/06/2021,Scholar Stipend,Award Costs,Scholar,PIN053804,3038.64,
FCDO,CSC,28/06/2021,Scholar Stipend,Award Costs,Scholar,PIN053805,3348,
FCDO,CSC,28/06/2021,Scholar Stipend,Award Costs,Scholar,PIN053806,3348,
FCDO,CSC,28/06/2021,Scholar Stipend,Award Costs,Scholar,PIN053807,2738,
FCDO,CSC,28/06/2021,Scholar Stipend,Award Costs,Scholar,PIN053808,3348,
FCDO,CSC,28/06/2021,Scholar Stipend,Award Costs,Scholar,PIN053809,2053.5,
FCDO,CSC,28/06/2021,Scholar Stipend,Award Costs,Scholar,PIN053810,2232,
FCDO,CSC,28/06/2021,Scholar Stipend,Award Costs,Scholar,PIN053811,3348,
FCDO,CSC,28/06/2021,Scholar Stipend,Award Costs,Scholar,PIN053812,1116,
FCDO,CSC,28/06/2021,Scholar Stipend,Award Costs,Scholar,PIN053813,2738,
FCDO,CSC,28/06/2021,Scholar Stipend,Award Costs,Scholar,PIN053814,3348,
FCDO,CSC,28/06/2021,Scholar Stipend,Award Costs,Scholar,PIN053815,2965.31,
FCDO,CSC,28/06/2021,Scholar Stipend,Award Costs,Scholar,PIN053816,3348,
FCDO,CSC,28/06/2021,Scholar Stipend,Award Costs,Scholar,PIN053817,1116,
FCDO,CSC,28/06/2021,Scholar Stipend,Award Costs,Scholar,PIN053818,2561.99,
FCDO,CSC,28/06/2021,Scholar Stipend,Award Costs,Scholar,PIN053819,3348,
FCDO,CSC,28/06/2021,Scholar Stipend,Award Costs,Scholar,PIN053820,3348,
FCDO,CSC,28/06/2021,Scholar Stipend,Award Costs,Scholar,PIN053821,2738,
FCDO,CSC,28/06/2021,Scholar Stipend,Award Costs,Scholar,PIN053822,2745.31,
FCDO,CSC,28/06/2021,Scholar Stipend,Award Costs,Scholar,PIN053823,3348,
FCDO,CSC,28/06/2021,Scholar Stipend,Award Costs,Scholar,PIN053824,3348,
FCDO,CSC,28/06/2021,Scholar Stipend,Award Costs,Scholar,PIN053825,2232,
FCDO,CSC,28/06/2021,Scholar Stipend,Award Costs,Scholar,PIN053826,2965.31,
FCDO,CSC,28/06/2021,Scholar Stipend,Award Costs,Scholar,PIN053827,3348,
FCDO,CSC,28/06/2021,Scholar Stipend,Award Costs,Scholar,PIN053828,3348,
FCDO,CSC,28/06/2021,Scholar Stipend,Award Costs,Scholar,PIN053829,2232,
FCDO,CSC,28/06/2021,Scholar Stipend,Award Costs,Scholar,PIN053830,3348,
FCDO,CSC,28/06/2021,Scholar Stipend,Award Costs,Scholar,PIN053832,3348,
FCDO,CSC,28/06/2021,Scholar Stipend,Award Costs,Scholar,PIN053833,3348,
FCDO,CSC,28/06/2021,Scholar Stipend,Award Costs,Scholar,PIN053834,1674,
FCDO,CSC,28/06/2021,Scholar Stipend,Award Costs,Scholar,PIN053835,3348,
FCDO,CSC,28/06/2021,Scholar Stipend,Award Costs,Scholar,PIN053836,3348,
FCDO,CSC,28/06/2021,Scholar Stipend,Award Costs,Scholar,PIN053837,1443.42,
FCDO,CSC,28/06/2021,Scholar Stipend,Award Costs,Scholar,PIN053838,721.71,
FCDO,CSC,28/06/2021,Scholar Stipend,Award Costs,Scholar,PIN053839,1443.42,
FCDO,CSC,28/06/2021,Scholar Stipend,Award Costs,Scholar,PIN053840,1382.24,
FCDO,CSC,28/06/2021,Scholar Stipend,Award Costs,Scholar,PIN053841,853.59,
FCDO,CSC,28/06/2021,Scholar Stipend,Award Costs,Scholar,PIN053842,1443.42,
FCDO,CSC,28/06/2021,Scholar Stipend,Award Costs,Scholar,PIN053843,1409.9,
FCDO,CSC,28/06/2021,Scholar Stipend,Award Costs,Scholar,PIN053845,1443.42,
FCDO,CSC,28/06/2021,Scholar Stipend,Award Costs,Scholar,PIN053848,1443.42,
FCDO,CSC,28/06/2021,Scholar Stipend,Award Costs,Scholar,PIN053849,1443.42,
FCDO,CSC,28/06/2021,Scholar Stipend,Award Costs,Scholar,PIN053850,946.47,
FCDO,CSC,28/06/2021,Scholar Stipend,Award Costs,Scholar,PIN053851,2166,
FCDO,CSC,28/06/2021,Scholar Stipend,Award Costs,Scholar,PIN053853,1262.62,
FCDO,CSC,28/06/2021,Scholar Stipend,Award Costs,Scholar,PIN053854,1443.42,
FCDO,CSC,28/06/2021,Scholar Stipend,Award Costs,Scholar,PIN053855,1443.42,
FCDO,CSC,28/06/2021,Scholar Stipend,Award Costs,Scholar,PIN053856,2166,
FCDO,CSC,28/06/2021,Scholar Stipend,Award Costs,Scholar,PIN053857,1443.42,
FCDO,CSC,28/06/2021,Scholar Stipend,Award Costs,Scholar,PIN053858,2166,
FCDO,CSC,28/06/2021,Scholar Stipend,Award Costs,Scholar,PIN053859,2886,
FCDO,CSC,28/06/2021,Scholar Stipend,Award Costs,Scholar,PIN053860,1389.08,
FCDO,CSC,28/06/2021,Scholar Stipend,Award Costs,Scholar,PIN053861,1389.08,
FCDO,CSC,28/06/2021,Scholar Stipend,Award Costs,Scholar,PIN053862,1443.42,
FCDO,CSC,28/06/2021,Scholar Stipend,Award Costs,Scholar,PIN053863,1443.42,
FCDO,CSC,28/06/2021,Scholar Allowances,Award Costs,Scholar,PIN053864,720,
FCDO,CSC,28/06/2021,Scholar Allowances,Award Costs,Scholar,PIN053867,677.13,
FCDO,CSC,28/06/2021,Scholar Allowances,Award Costs,Scholar,PIN053868,744.97,
FCDO,CSC,28/06/2021,Scholar Allowances,Award Costs,Scholar,PIN053869,1074,
FCDO,CSC,28/06/2021,Scholar Allowances,Award Costs,Scholar,PIN053870,952,
FCDO,CSC,28/06/2021,Scholar Allowances,Award Costs,Scholar,PIN053871,720,
FCDO,CSC,28/06/2021,Scholar Allowances,Award Costs,Scholar,PIN053872,1074,
FCDO,CSC,28/06/2021,Scholar Allowances,Award Costs,Scholar,PIN053873,1074,
FCDO,CSC,28/06/2021,Scholar Allowances,Award Costs,Scholar,PIN053874,1428,
FCDO,CSC,28/06/2021,Scholar Allowances,Award Costs,Scholar,PIN053875,716,
FCDO,CSC,28/06/2021,Scholar Allowances,Award Costs,Scholar,PIN053877,1074,
FCDO,CSC,28/06/2021,Scholar Allowances,Award Costs,Scholar,PIN053878,1074,
FCDO,CSC,28/06/2021,Scholar Allowances,Award Costs,Scholar,PIN053879,1434,
FCDO,CSC,28/06/2021,Scholar Allowances,Award Costs,Scholar,PIN053880,1428,
FCDO,CSC,28/06/2021,Scholar Allowances,Award Costs,Scholar,PIN053881,1434,
FCDO,CSC,28/06/2021,Scholar Allowances,Award Costs,Scholar,PIN053882,720,
FCDO,CSC,28/06/2021,Scholar Allowances,Award Costs,Scholar,PIN053883,1074,
FCDO,CSC,28/06/2021,Scholar Allowances,Award Costs,Scholar,PIN053884,1074,
FCDO,CSC,28/06/2021,Scholar Allowances,Award Costs,Scholar,PIN053885,1428,
FCDO,CSC,28/06/2021,Scholar Allowances,Award Costs,Scholar,PIN053887,1074,
FCDO,CSC,28/06/2021,Scholar Allowances,Award Costs,Scholar,PIN053888,720,
FCDO,CSC,28/06/2021,Scholar Allowances,Award Costs,Scholar,PIN053889,720,
FCDO,CSC,28/06/2021,Scholar Allowances,Award Costs,Scholar,PIN053890,1074,
FCDO,CSC,28/06/2021,Scholar Allowances,Award Costs,Scholar,PIN053891,720,
FCDO,CSC,28/06/2021,Scholar Allowances,Award Costs,Scholar,PIN053892,1428,
FCDO,CSC,28/06/2021,Scholar Allowances,Award Costs,Scholar,PIN053893,720,
FCDO,CSC,28/06/2021,Scholar Allowances,Award Costs,Scholar,PIN053894,716,
FCDO,CSC,28/06/2021,Scholar Allowances,Award Costs,Scholar,PIN053895,1428,
FCDO,CSC,28/06/2021,Scholar Allowances,Award Costs,Scholar,PIN053896,720,
FCDO,CSC,28/06/2021,Scholar Allowances,Award Costs,Scholar,PIN053897,1434,
FCDO,CSC,28/06/2021,Scholar Allowances,Award Costs,Scholar,PIN053898,1074,
FCDO,CSC,28/06/2021,Scholar Allowances,Award Costs,Scholar,PIN053899,1074,
FCDO,CSC,28/06/2021,Scholar Allowances,Award Costs,Scholar,PIN053900,1074,
FCDO,CSC,28/06/2021,Scholar Allowances,Award Costs,Scholar,PIN053901,952,
FCDO,CSC,28/06/2021,Scholar Allowances,Award Costs,Scholar,PIN053902,716,
FCDO,CSC,28/06/2021,Scholar Allowances,Award Costs,Scholar,PIN053903,904.19,
FCDO,CSC,28/06/2021,Scholar Allowances,Award Costs,Scholar,PIN053904,720,
FCDO,CSC,28/06/2021,Scholar Allowances,Award Costs,Scholar,PIN053905,720,
FCDO,CSC,28/06/2021,Scholar Allowances,Award Costs,Scholar,PIN053906,1074,
FCDO,CSC,28/06/2021,Scholar Allowances,Award Costs,Scholar,PIN053907,1428,
FCDO,CSC,28/06/2021,Scholar Allowances,Award Costs,Scholar,PIN053909,716,
FCDO,CSC,28/06/2021,Scholar Allowances,Award Costs,Scholar,PIN053911,1428,
FCDO,CSC,28/06/2021,Scholar Allowances,Award Costs,Scholar,PIN053912,1074,
FCDO,CSC,28/06/2021,Scholar Allowances,Award Costs,Scholar,PIN053913,720,
FCDO,CSC,28/06/2021,Scholar Allowances,Award Costs,Scholar,PIN053915,720,
FCDO,CSC,28/06/2021,Scholar Allowances,Award Costs,Scholar,PIN053916,720,
FCDO,CSC,28/06/2021,Scholar Allowances,Award Costs,Scholar,PIN053919,677.13,
FCDO,CSC,28/06/2021,Scholar Allowances,Award Costs,Scholar,PIN053920,720,
FCDO,CSC,28/06/2021,Scholar Allowances,Award Costs,Scholar,PIN053921,720,
FCDO,CSC,28/06/2021,Scholar Allowances,Award Costs,Scholar,PIN053923,720,
FCDO,CSC,28/06/2021,Scholar Allowances,Award Costs,Scholar,PIN053924,720,
FCDO,CSC,28/06/2021,Scholar Allowances,Award Costs,Scholar,PIN053925,720,
FCDO,CSC,28/06/2021,Scholar Allowances,Award Costs,Scholar,PIN053926,720,
FCDO,CSC,28/06/2021,Scholar Allowances,Award Costs,Scholar,PIN053929,720,
FCDO,CSC,28/06/2021,Scholar Allowances,Award Costs,Scholar,PIN053930,720,
FCDO,CSC,28/06/2021,Scholar Allowances,Award Costs,Scholar,PIN053931,720,
FCDO,CSC,28/06/2021,Scholar Allowances,Award Costs,Scholar,PIN053932,720,
FCDO,CSC,28/06/2021,Scholar Allowances,Award Costs,Scholar,PIN053933,720,
FCDO,CSC,28/06/2021,Scholar Allowances,Award Costs,Scholar,PIN053934,720,
FCDO,CSC,28/06/2021,Scholar Allowances,Award Costs,Scholar,PIN053935,720,
FCDO,CSC,28/06/2021,Scholar Allowances,Award Costs,Scholar,PIN053937,720,
FCDO,CSC,28/06/2021,Scholar Allowances,Award Costs,Scholar,PIN053938,720,
FCDO,CSC,28/06/2021,Scholar Allowances,Award Costs,Scholar,PIN053939,720,
FCDO,CSC,28/06/2021,Scholar Allowances,Award Costs,Scholar,PIN053940,720,
FCDO,CSC,28/06/2021,Scholar Allowances,Award Costs,Scholar,PIN053941,720,
FCDO,CSC,28/06/2021,Scholar Allowances,Award Costs,Scholar,PIN053942,720,
FCDO,CSC,28/06/2021,Scholar Allowances,Award Costs,Scholar,PIN053943,720,
FCDO,CSC,28/06/2021,Scholar Allowances,Award Costs,Scholar,PIN053945,720,
FCDO,CSC,28/06/2021,Scholar Allowances,Award Costs,Scholar,PIN053946,720,
FCDO,CSC,28/06/2021,Scholar Allowances,Award Costs,Scholar,PIN053947,720,
FCDO,CSC,28/06/2021,Scholar Allowances,Award Costs,Scholar,PIN053948,720,
FCDO,CSC,28/06/2021,Scholar Allowances,Award Costs,Scholar,PIN053949,720,
FCDO,CSC,28/06/2021,Scholar Allowances,Award Costs,Scholar,PIN053950,720,
FCDO,CSC,28/06/2021,Scholar Allowances,Award Costs,Scholar,PIN053951,720,
FCDO,CSC,28/06/2021,Scholar Allowances,Award Costs,Scholar,PIN053952,720,
FCDO,CSC,28/06/2021,Scholar Allowances,Award Costs,Scholar,PIN053954,606.16,
FCDO,CSC,28/06/2021,Scholar Allowances,Award Costs,Scholar,PIN053955,720,
FCDO,CSC,28/06/2021,Scholar Allowances,Award Costs,Scholar,PIN053956,720,
FCDO,CSC,28/06/2021,Scholar Allowances,Award Costs,Scholar,PIN053957,720,
FCDO,CSC,28/06/2021,Scholar Allowances,Award Costs,Scholar,PIN053958,720,
FCDO,CSC,28/06/2021,Scholar Allowances,Award Costs,Scholar,PIN053962,720,
FCDO,CSC,28/06/2021,Scholar Allowances,Award Costs,Scholar,PIN053963,720,
FCDO,CSC,28/06/2021,Scholar Allowances,Award Costs,Scholar,PIN054021,750,
FCDO,CSC,28/06/2021,Scholar Allowances,Award Costs,Scholar,PIN054041,550,
FCDO,CSC,25/06/2021,Scholar Stipend,Award Costs,Scholar,PIN054045,962,
FCDO,CSC,25/06/2021,Scholar Allowances,Award Costs,Scholar,PIN054046,720,
FCDO,CSC,25/06/2021,Scholar Allowances,Award Costs,Scholar,PIN054046,720,
FCDO,CSC,25/06/2021,Scholar Stipend,Award Costs,Scholar,PIN054047,1375.18,
FCDO,CSC,25/06/2021,Scholar Allowances,Award Costs,Scholar,PIN054047,433,
FCDO,CSC,25/06/2021,Scholar Stipend,Award Costs,Scholar,PIN054048,1674,
FCDO,CSC,25/06/2021,Scholar Allowances,Award Costs,Scholar,PIN054049,830.32,
FCDO,CSC,25/06/2021,Scholar Allowances,Award Costs,Scholar,PIN054049,1238.64,
FCDO,CSC,25/06/2021,Scholar Allowances,Award Costs,Scholar,PIN054050,468,
FCDO,CSC,25/06/2021,Scholar Allowances,Award Costs,Scholar,PIN054050,468,
FCDO,CSC,25/06/2021,Scholar Allowances,Award Costs,Scholar,PIN054051,885.48,
FCDO,CSC,25/06/2021,Scholar Allowances,Award Costs,Scholar,PIN054051,885.48,
FCDO,CSC,30/06/2021,Scholar Allowances,Award Costs,Scholar,PIN054056,251.52,
FCDO,CSC,30/06/2021,Scholar Allowances,Award Costs,Scholar,PIN054056,1018.8,
FCDO,CSC,30/06/2021,Scholar Allowances,Award Costs,Scholar,PIN054056,247.88,
FCDO,CSC,30/06/2021,Scholar Allowances,Award Costs,Scholar,PIN054056,247.88,
FCDO,CSC,30/06/2021,Bank Charges,Programme Costs,MasterCard Prepaid Management Services Ltd,PIN054056,17.66,
FCDO,CSC,29/06/2021,Scholar Allowances,Award Costs,Scholar,PIN054057,150,
FCDO,CSC,29/06/2021,Scholar Stipend,Award Costs,Scholar,PIN054057,1775.37,
FCDO,CSC,29/06/2021,Scholar Allowances,Award Costs,Scholar,PIN054057,150,
FCDO,CSC,29/06/2021,Scholar Stipend,Award Costs,Scholar,PIN054057,3155.55,
FCDO,CSC,29/06/2021,Scholar Allowances,Award Costs,Scholar,PIN054057,150,
FCDO,CSC,29/06/2021,Scholar Stipend,Award Costs,Scholar,PIN054057,2737.66,
FCDO,CSC,29/06/2021,Bank Charges,Programme Costs,MasterCard Prepaid Management Services Ltd,PIN054057,81.19,
FCDO,CSC,24/06/2021,Scholar Stipend,Award Costs,Scholar,PIN054059,2617.52,
FCDO,CSC,24/06/2021,Bank Charges,Programme Costs,MasterCard Prepaid Management Services Ltd,PIN054059,26.18,
FCDO,CSC,29/06/2021,Scholar Allowances,Award Costs,Scholar,PIN054060,720,
FCDO,CSC,29/06/2021,Scholar Allowances,Award Costs,Scholar,PIN054060,1428,
FCDO,CSC,29/06/2021,Scholar Stipend,Award Costs,Scholar,PIN054060,3348,
FCDO,CSC,29/06/2021,Scholar Stipend,Award Costs,Scholar,PIN054061,1116,
FCDO,CSC,29/06/2021,Scholar Allowances,Award Costs,Scholar,PIN054062,720,
FCDO,CSC,29/06/2021,Scholar Allowances,Award Costs,Scholar,PIN054062,720,
FCDO,CSC,29/06/2021,Scholar Stipend,Award Costs,Scholar,PIN054062,3348,
FCDO,CSC,29/06/2021,Scholar Allowances,Award Costs,Scholar,PIN054063,1535.36,
FCDO,CSC,29/06/2021,Scholar Stipend,Award Costs,Scholar,PIN054063,989.96,
FCDO,CSC,29/06/2021,Scholar Allowances,Award Costs,Scholar,PIN054064,200,
FCDO,CSC,29/06/2021,Scholar Stipend,Award Costs,Scholar,PIN054064,733.31,
FCDO,CSC,29/06/2021,Scholar Allowances,Award Costs,Scholar,PIN054065,275,
FCDO,CSC,29/06/2021,Scholar Stipend,Award Costs,Scholar,PIN054065,1169.41,
FCDO,CSC,29/06/2021,Scholar Stipend,Award Costs,Scholar,PIN054066,2231.77,
FCDO,CSC,29/06/2021,Scholar Allowances,Award Costs,Scholar,PIN054067,11.76,
FCDO,CSC,29/06/2021,Scholar Allowances,Award Costs,Scholar,PIN054067,7.89,
FCDO,CSC,29/06/2021,Scholar Stipend,Award Costs,Scholar,PIN054067,1703.17,
FCDO,CSC,29/06/2021,Scholar Stipend,Award Costs,Scholar,PIN054068,1116,
FCDO,CSC,30/06/2021,Scholar Stipend,Award Costs,Scholar,PIN054094,4107,
FCDO,CSC,29/06/2021,Scholar Allowances,Award Costs,Scholar,PRF000220,-720,
